{"text_format":"3","workbook":"xlsx","n_sheets":12,"sheets":["JAN","FEB","MAR","APR","MAY","JUN","JUL","AUG","SEP","OCT","NOV","DEC"],"not_rendered":{"defined_names":16},"read":"whole","date_system":"1900"}

{"sheet":"JAN","index":0,"n_rows":20,"n_cols":10,"rows_kept":20,"merged":[[17,4,19,8]]}
[null,null,"SUN",{"$f":"UPPER(TEXT(D3,\"aaa\"))","v":"MON"},"TUE","WED","THU","FRI","SAT"," "]
[null,2013,{"$nulls":7}," "]
[null,null,{"$f":"DaysAndWeeks+DATE(CalendarYear,1,1)-WEEKDAY(DATE(CalendarYear,1,1),(WeekStart=\"MON\")+1)+1","v":"2012-12-30"},"2012-12-31","2013-01-01","2013-01-02","2013-01-03","2013-01-04","2013-01-05"]
[null,null,{"$f":"IF(DAY(CalendarDay)=1,CONCATENATE(\"Week/\",WEEKNUM(CalendarDay),\" Day \",CalendarDay-DATE(YEAR(CalendarDay),1,0)),CONCATENATE(\"Day \",CalendarDay-DATE(YEAR(CalendarDay),1,0)))","v":"Day 365"},"Day 366","Week/1 Day 1","Day 2","Day 3","Day 4","Day 5"]
[]
[null,null,{"$f":"DaysAndWeeks+DATE(CalendarYear,1,1)-WEEKDAY(DATE(CalendarYear,1,1),(WeekStart=\"MON\")+1)+8","v":"2013-01-06"},"2013-01-07","2013-01-08","2013-01-09","2013-01-10","2013-01-11","2013-01-12"]
[null,null,{"$f":"IF(WEEKDAY(CalendarDay)=WeekStartValue,CONCATENATE(\"Week \",WEEKNUM(CalendarDay),\"/Day \",CalendarDay-DATE(YEAR(CalendarDay),1,0)),CONCATENATE(\"Day \",CalendarDay-DATE(YEAR(CalendarDay),1,0)))","v":"Week 2/Day 6"},{"$f":"IF(WEEKDAY(CalendarDay)=WeekStartValue,CONCATENATE(\"Week \",WEEKNUM(CalendarDay),\"/Day \",CalendarDay-DATE(YEAR(CalendarDay),1,0)),CONCATENATE(\"Day \",CalendarDay-DATE(YEAR(CalendarDay),1,0)))","v":"Day 7"},{"$f":"IF(WEEKDAY(CalendarDay)=WeekStartValue,CONCATENATE(\"Week \",WEEKNUM(CalendarDay),\"/Day \",CalendarDay-DATE(YEAR(CalendarDay),1,0)),CONCATENATE(\"Day \",CalendarDay-DATE(YEAR(CalendarDay),1,0)))","v":"Day 8"},{"$f":"IF(WEEKDAY(CalendarDay)=WeekStartValue,CONCATENATE(\"Week \",WEEKNUM(CalendarDay),\"/Day \",CalendarDay-DATE(YEAR(CalendarDay),1,0)),CONCATENATE(\"Day \",CalendarDay-DATE(YEAR(CalendarDay),1,0)))","v":"Day 9"},{"$f":"IF(WEEKDAY(CalendarDay)=WeekStartValue,CONCATENATE(\"Week \",WEEKNUM(CalendarDay),\"/Day \",CalendarDay-DATE(YEAR(CalendarDay),1,0)),CONCATENATE(\"Day \",CalendarDay-DATE(YEAR(CalendarDay),1,0)))","v":"Day 10"},{"$f":"IF(WEEKDAY(CalendarDay)=WeekStartValue,CONCATENATE(\"Week \",WEEKNUM(CalendarDay),\"/Day \",CalendarDay-DATE(YEAR(CalendarDay),1,0)),CONCATENATE(\"Day \",CalendarDay-DATE(YEAR(CalendarDay),1,0)))","v":"Day 11"},{"$f":"IF(WEEKDAY(CalendarDay)=WeekStartValue,CONCATENATE(\"Week \",WEEKNUM(CalendarDay),\"/Day \",CalendarDay-DATE(YEAR(CalendarDay),1,0)),CONCATENATE(\"Day \",CalendarDay-DATE(YEAR(CalendarDay),1,0)))","v":"Day 12"}]
[]
[null,null,{"$f":"DaysAndWeeks+DATE(CalendarYear,1,1)-WEEKDAY(DATE(CalendarYear,1,1),(WeekStart=\"MON\")+1)+15","v":"2013-01-13"},"2013-01-14","2013-01-15","2013-01-16","2013-01-17","2013-01-18","2013-01-19"]
[null,null,{"$f":"IF(WEEKDAY(CalendarDay)=WeekStartValue,CONCATENATE(\"Week \",WEEKNUM(CalendarDay),\"/Day \",CalendarDay-DATE(YEAR(CalendarDay),1,0)),CONCATENATE(\"Day \",CalendarDay-DATE(YEAR(CalendarDay),1,0)))","v":"Week 3/Day 13"},{"$f":"IF(WEEKDAY(CalendarDay)=WeekStartValue,CONCATENATE(\"Week \",WEEKNUM(CalendarDay),\"/Day \",CalendarDay-DATE(YEAR(CalendarDay),1,0)),CONCATENATE(\"Day \",CalendarDay-DATE(YEAR(CalendarDay),1,0)))","v":"Day 14"},{"$f":"IF(WEEKDAY(CalendarDay)=WeekStartValue,CONCATENATE(\"Week \",WEEKNUM(CalendarDay),\"/Day \",CalendarDay-DATE(YEAR(CalendarDay),1,0)),CONCATENATE(\"Day \",CalendarDay-DATE(YEAR(CalendarDay),1,0)))","v":"Day 15"},{"$f":"IF(WEEKDAY(CalendarDay)=WeekStartValue,CONCATENATE(\"Week \",WEEKNUM(CalendarDay),\"/Day \",CalendarDay-DATE(YEAR(CalendarDay),1,0)),CONCATENATE(\"Day \",CalendarDay-DATE(YEAR(CalendarDay),1,0)))","v":"Day 16"},{"$f":"IF(WEEKDAY(CalendarDay)=WeekStartValue,CONCATENATE(\"Week \",WEEKNUM(CalendarDay),\"/Day \",CalendarDay-DATE(YEAR(CalendarDay),1,0)),CONCATENATE(\"Day \",CalendarDay-DATE(YEAR(CalendarDay),1,0)))","v":"Day 17"},{"$f":"IF(WEEKDAY(CalendarDay)=WeekStartValue,CONCATENATE(\"Week \",WEEKNUM(CalendarDay),\"/Day \",CalendarDay-DATE(YEAR(CalendarDay),1,0)),CONCATENATE(\"Day \",CalendarDay-DATE(YEAR(CalendarDay),1,0)))","v":"Day 18"},{"$f":"IF(WEEKDAY(CalendarDay)=WeekStartValue,CONCATENATE(\"Week \",WEEKNUM(CalendarDay),\"/Day \",CalendarDay-DATE(YEAR(CalendarDay),1,0)),CONCATENATE(\"Day \",CalendarDay-DATE(YEAR(CalendarDay),1,0)))","v":"Day 19"}]
[]
[null,null,{"$f":"DaysAndWeeks+DATE(CalendarYear,1,1)-WEEKDAY(DATE(CalendarYear,1,1),(WeekStart=\"MON\")+1)+22","v":"2013-01-20"},"2013-01-21","2013-01-22","2013-01-23","2013-01-24","2013-01-25","2013-01-26"]
[null,null,{"$f":"IF(WEEKDAY(CalendarDay)=WeekStartValue,CONCATENATE(\"Week \",WEEKNUM(CalendarDay),\"/Day \",CalendarDay-DATE(YEAR(CalendarDay),1,0)),CONCATENATE(\"Day \",CalendarDay-DATE(YEAR(CalendarDay),1,0)))","v":"Week 4/Day 20"},{"$f":"IF(WEEKDAY(CalendarDay)=WeekStartValue,CONCATENATE(\"Week \",WEEKNUM(CalendarDay),\"/Day \",CalendarDay-DATE(YEAR(CalendarDay),1,0)),CONCATENATE(\"Day \",CalendarDay-DATE(YEAR(CalendarDay),1,0)))","v":"Day 21"},{"$f":"IF(WEEKDAY(CalendarDay)=WeekStartValue,CONCATENATE(\"Week \",WEEKNUM(CalendarDay),\"/Day \",CalendarDay-DATE(YEAR(CalendarDay),1,0)),CONCATENATE(\"Day \",CalendarDay-DATE(YEAR(CalendarDay),1,0)))","v":"Day 22"},{"$f":"IF(WEEKDAY(CalendarDay)=WeekStartValue,CONCATENATE(\"Week \",WEEKNUM(CalendarDay),\"/Day \",CalendarDay-DATE(YEAR(CalendarDay),1,0)),CONCATENATE(\"Day \",CalendarDay-DATE(YEAR(CalendarDay),1,0)))","v":"Day 23"},{"$f":"IF(WEEKDAY(CalendarDay)=WeekStartValue,CONCATENATE(\"Week \",WEEKNUM(CalendarDay),\"/Day \",CalendarDay-DATE(YEAR(CalendarDay),1,0)),CONCATENATE(\"Day \",CalendarDay-DATE(YEAR(CalendarDay),1,0)))","v":"Day 24"},{"$f":"IF(WEEKDAY(CalendarDay)=WeekStartValue,CONCATENATE(\"Week \",WEEKNUM(CalendarDay),\"/Day \",CalendarDay-DATE(YEAR(CalendarDay),1,0)),CONCATENATE(\"Day \",CalendarDay-DATE(YEAR(CalendarDay),1,0)))","v":"Day 25"},{"$f":"IF(WEEKDAY(CalendarDay)=WeekStartValue,CONCATENATE(\"Week \",WEEKNUM(CalendarDay),\"/Day \",CalendarDay-DATE(YEAR(CalendarDay),1,0)),CONCATENATE(\"Day \",CalendarDay-DATE(YEAR(CalendarDay),1,0)))","v":"Day 26"}]
[]
[null,null,{"$f":"DaysAndWeeks+DATE(CalendarYear,1,1)-WEEKDAY(DATE(CalendarYear,1,1),(WeekStart=\"MON\")+1)+29","v":"2013-01-27"},"2013-01-28","2013-01-29","2013-01-30","2013-01-31","2013-02-01","2013-02-02"]
[null,null,{"$f":"IF(WEEKDAY(CalendarDay)=WeekStartValue,CONCATENATE(\"Week \",WEEKNUM(CalendarDay),\"/Day \",CalendarDay-DATE(YEAR(CalendarDay),1,0)),CONCATENATE(\"Day \",CalendarDay-DATE(YEAR(CalendarDay),1,0)))","v":"Week 5/Day 27"},{"$f":"IF(WEEKDAY(CalendarDay)=WeekStartValue,CONCATENATE(\"Week \",WEEKNUM(CalendarDay),\"/Day \",CalendarDay-DATE(YEAR(CalendarDay),1,0)),CONCATENATE(\"Day \",CalendarDay-DATE(YEAR(CalendarDay),1,0)))","v":"Day 28"},{"$f":"IF(WEEKDAY(CalendarDay)=WeekStartValue,CONCATENATE(\"Week \",WEEKNUM(CalendarDay),\"/Day \",CalendarDay-DATE(YEAR(CalendarDay),1,0)),CONCATENATE(\"Day \",CalendarDay-DATE(YEAR(CalendarDay),1,0)))","v":"Day 29"},{"$f":"IF(WEEKDAY(CalendarDay)=WeekStartValue,CONCATENATE(\"Week \",WEEKNUM(CalendarDay),\"/Day \",CalendarDay-DATE(YEAR(CalendarDay),1,0)),CONCATENATE(\"Day \",CalendarDay-DATE(YEAR(CalendarDay),1,0)))","v":"Day 30"},{"$f":"IF(WEEKDAY(CalendarDay)=WeekStartValue,CONCATENATE(\"Week \",WEEKNUM(CalendarDay),\"/Day \",CalendarDay-DATE(YEAR(CalendarDay),1,0)),CONCATENATE(\"Day \",CalendarDay-DATE(YEAR(CalendarDay),1,0)))","v":"Day 31"},{"$f":"IF(WEEKDAY(CalendarDay)=WeekStartValue,CONCATENATE(\"Week \",WEEKNUM(CalendarDay),\"/Day \",CalendarDay-DATE(YEAR(CalendarDay),1,0)),CONCATENATE(\"Day \",CalendarDay-DATE(YEAR(CalendarDay),1,0)))","v":"Day 32"},{"$f":"IF(WEEKDAY(CalendarDay)=WeekStartValue,CONCATENATE(\"Week \",WEEKNUM(CalendarDay),\"/Day \",CalendarDay-DATE(YEAR(CalendarDay),1,0)),CONCATENATE(\"Day \",CalendarDay-DATE(YEAR(CalendarDay),1,0)))","v":"Day 33"}]
[{"$nulls":4},"NOTES"]
[]
[null,null,{"$f":"DaysAndWeeks+DATE(CalendarYear,1,1)-WEEKDAY(DATE(CalendarYear,1,1),(WeekStart=\"MON\")+1)+36","v":"2013-02-03"},"2013-02-04"]
[null,null,{"$f":"IF(WEEKDAY(CalendarDay)=WeekStartValue,CONCATENATE(\"Week \",WEEKNUM(CalendarDay),\"/Day \",CalendarDay-DATE(YEAR(CalendarDay),1,0)),CONCATENATE(\"Day \",CalendarDay-DATE(YEAR(CalendarDay),1,0)))","v":"Week 6/Day 34"},{"$f":"IF(WEEKDAY(CalendarDay)=WeekStartValue,CONCATENATE(\"Week \",WEEKNUM(CalendarDay),\"/Day \",CalendarDay-DATE(YEAR(CalendarDay),1,0)),CONCATENATE(\"Day \",CalendarDay-DATE(YEAR(CalendarDay),1,0)))","v":"Day 35"}]

{"sheet":"FEB","index":1,"n_rows":20,"n_cols":10,"rows_kept":20,"merged":[[17,4,19,8]]}
[null,null,"SUN",{"$f":"UPPER(TEXT(D3,\"aaa\"))","v":"MON"},"TUE","WED","THU","FRI","SAT"," "]
[null,{"$f":"CalendarYear","v":2013},{"$nulls":7}," "]
[null,null,{"$f":"DaysAndWeeks+DATE(CalendarYear,2,1)-WEEKDAY(DATE(CalendarYear,2,1),(WeekStart=\"MON\")+1)+1","v":"2013-01-27"},"2013-01-28","2013-01-29","2013-01-30","2013-01-31","2013-02-01","2013-02-02"]
[null,null,{"$f":"IF(DAY(CalendarDay)=1,CONCATENATE(\"Week/\",WEEKNUM(CalendarDay),\" Day \",CalendarDay-DATE(YEAR(CalendarDay),1,0)),CONCATENATE(\"Day \",CalendarDay-DATE(YEAR(CalendarDay),1,0)))","v":"Day 27"},"Day 28","Day 29","Day 30","Day 31","Week/5 Day 32","Day 33"]
[]
[null,null,{"$f":"DaysAndWeeks+DATE(CalendarYear,2,1)-WEEKDAY(DATE(CalendarYear,2,1),(WeekStart=\"MON\")+1)+8","v":"2013-02-03"},"2013-02-04","2013-02-05","2013-02-06","2013-02-07","2013-02-08","2013-02-09"]
[null,null,{"$f":"IF(WEEKDAY(CalendarDay)=WeekStartValue,CONCATENATE(\"Week \",WEEKNUM(CalendarDay),\"/Day \",CalendarDay-DATE(YEAR(CalendarDay),1,0)),CONCATENATE(\"Day \",CalendarDay-DATE(YEAR(CalendarDay),1,0)))","v":"Week 6/Day 34"},{"$f":"IF(WEEKDAY(CalendarDay)=WeekStartValue,CONCATENATE(\"Week \",WEEKNUM(CalendarDay),\"/Day \",CalendarDay-DATE(YEAR(CalendarDay),1,0)),CONCATENATE(\"Day \",CalendarDay-DATE(YEAR(CalendarDay),1,0)))","v":"Day 35"},{"$f":"IF(WEEKDAY(CalendarDay)=WeekStartValue,CONCATENATE(\"Week \",WEEKNUM(CalendarDay),\"/Day \",CalendarDay-DATE(YEAR(CalendarDay),1,0)),CONCATENATE(\"Day \",CalendarDay-DATE(YEAR(CalendarDay),1,0)))","v":"Day 36"},{"$f":"IF(WEEKDAY(CalendarDay)=WeekStartValue,CONCATENATE(\"Week \",WEEKNUM(CalendarDay),\"/Day \",CalendarDay-DATE(YEAR(CalendarDay),1,0)),CONCATENATE(\"Day \",CalendarDay-DATE(YEAR(CalendarDay),1,0)))","v":"Day 37"},{"$f":"IF(WEEKDAY(CalendarDay)=WeekStartValue,CONCATENATE(\"Week \",WEEKNUM(CalendarDay),\"/Day \",CalendarDay-DATE(YEAR(CalendarDay),1,0)),CONCATENATE(\"Day \",CalendarDay-DATE(YEAR(CalendarDay),1,0)))","v":"Day 38"},{"$f":"IF(WEEKDAY(CalendarDay)=WeekStartValue,CONCATENATE(\"Week \",WEEKNUM(CalendarDay),\"/Day \",CalendarDay-DATE(YEAR(CalendarDay),1,0)),CONCATENATE(\"Day \",CalendarDay-DATE(YEAR(CalendarDay),1,0)))","v":"Day 39"},{"$f":"IF(WEEKDAY(CalendarDay)=WeekStartValue,CONCATENATE(\"Week \",WEEKNUM(CalendarDay),\"/Day \",CalendarDay-DATE(YEAR(CalendarDay),1,0)),CONCATENATE(\"Day \",CalendarDay-DATE(YEAR(CalendarDay),1,0)))","v":"Day 40"}]
[]
[null,null,{"$f":"DaysAndWeeks+DATE(CalendarYear,2,1)-WEEKDAY(DATE(CalendarYear,2,1),(WeekStart=\"MON\")+1)+15","v":"2013-02-10"},"2013-02-11","2013-02-12","2013-02-13","2013-02-14","2013-02-15","2013-02-16"]
[null,null,{"$f":"IF(WEEKDAY(CalendarDay)=WeekStartValue,CONCATENATE(\"Week \",WEEKNUM(CalendarDay),\"/Day \",CalendarDay-DATE(YEAR(CalendarDay),1,0)),CONCATENATE(\"Day \",CalendarDay-DATE(YEAR(CalendarDay),1,0)))","v":"Week 7/Day 41"},{"$f":"IF(WEEKDAY(CalendarDay)=WeekStartValue,CONCATENATE(\"Week \",WEEKNUM(CalendarDay),\"/Day \",CalendarDay-DATE(YEAR(CalendarDay),1,0)),CONCATENATE(\"Day \",CalendarDay-DATE(YEAR(CalendarDay),1,0)))","v":"Day 42"},{"$f":"IF(WEEKDAY(CalendarDay)=WeekStartValue,CONCATENATE(\"Week \",WEEKNUM(CalendarDay),\"/Day \",CalendarDay-DATE(YEAR(CalendarDay),1,0)),CONCATENATE(\"Day \",CalendarDay-DATE(YEAR(CalendarDay),1,0)))","v":"Day 43"},{"$f":"IF(WEEKDAY(CalendarDay)=WeekStartValue,CONCATENATE(\"Week \",WEEKNUM(CalendarDay),\"/Day \",CalendarDay-DATE(YEAR(CalendarDay),1,0)),CONCATENATE(\"Day \",CalendarDay-DATE(YEAR(CalendarDay),1,0)))","v":"Day 44"},{"$f":"IF(WEEKDAY(CalendarDay)=WeekStartValue,CONCATENATE(\"Week \",WEEKNUM(CalendarDay),\"/Day \",CalendarDay-DATE(YEAR(CalendarDay),1,0)),CONCATENATE(\"Day \",CalendarDay-DATE(YEAR(CalendarDay),1,0)))","v":"Day 45"},{"$f":"IF(WEEKDAY(CalendarDay)=WeekStartValue,CONCATENATE(\"Week \",WEEKNUM(CalendarDay),\"/Day \",CalendarDay-DATE(YEAR(CalendarDay),1,0)),CONCATENATE(\"Day \",CalendarDay-DATE(YEAR(CalendarDay),1,0)))","v":"Day 46"},{"$f":"IF(WEEKDAY(CalendarDay)=WeekStartValue,CONCATENATE(\"Week \",WEEKNUM(CalendarDay),\"/Day \",CalendarDay-DATE(YEAR(CalendarDay),1,0)),CONCATENATE(\"Day \",CalendarDay-DATE(YEAR(CalendarDay),1,0)))","v":"Day 47"}]
[]
[null,null,{"$f":"DaysAndWeeks+DATE(CalendarYear,2,1)-WEEKDAY(DATE(CalendarYear,2,1),(WeekStart=\"MON\")+1)+22","v":"2013-02-17"},"2013-02-18","2013-02-19","2013-02-20","2013-02-21","2013-02-22","2013-02-23"]
[null,null,{"$f":"IF(WEEKDAY(CalendarDay)=WeekStartValue,CONCATENATE(\"Week \",WEEKNUM(CalendarDay),\"/Day \",CalendarDay-DATE(YEAR(CalendarDay),1,0)),CONCATENATE(\"Day \",CalendarDay-DATE(YEAR(CalendarDay),1,0)))","v":"Week 8/Day 48"},{"$f":"IF(WEEKDAY(CalendarDay)=WeekStartValue,CONCATENATE(\"Week \",WEEKNUM(CalendarDay),\"/Day \",CalendarDay-DATE(YEAR(CalendarDay),1,0)),CONCATENATE(\"Day \",CalendarDay-DATE(YEAR(CalendarDay),1,0)))","v":"Day 49"},{"$f":"IF(WEEKDAY(CalendarDay)=WeekStartValue,CONCATENATE(\"Week \",WEEKNUM(CalendarDay),\"/Day \",CalendarDay-DATE(YEAR(CalendarDay),1,0)),CONCATENATE(\"Day \",CalendarDay-DATE(YEAR(CalendarDay),1,0)))","v":"Day 50"},{"$f":"IF(WEEKDAY(CalendarDay)=WeekStartValue,CONCATENATE(\"Week \",WEEKNUM(CalendarDay),\"/Day \",CalendarDay-DATE(YEAR(CalendarDay),1,0)),CONCATENATE(\"Day \",CalendarDay-DATE(YEAR(CalendarDay),1,0)))","v":"Day 51"},{"$f":"IF(WEEKDAY(CalendarDay)=WeekStartValue,CONCATENATE(\"Week \",WEEKNUM(CalendarDay),\"/Day \",CalendarDay-DATE(YEAR(CalendarDay),1,0)),CONCATENATE(\"Day \",CalendarDay-DATE(YEAR(CalendarDay),1,0)))","v":"Day 52"},{"$f":"IF(WEEKDAY(CalendarDay)=WeekStartValue,CONCATENATE(\"Week \",WEEKNUM(CalendarDay),\"/Day \",CalendarDay-DATE(YEAR(CalendarDay),1,0)),CONCATENATE(\"Day \",CalendarDay-DATE(YEAR(CalendarDay),1,0)))","v":"Day 53"},{"$f":"IF(WEEKDAY(CalendarDay)=WeekStartValue,CONCATENATE(\"Week \",WEEKNUM(CalendarDay),\"/Day \",CalendarDay-DATE(YEAR(CalendarDay),1,0)),CONCATENATE(\"Day \",CalendarDay-DATE(YEAR(CalendarDay),1,0)))","v":"Day 54"}]
[]
[null,null,{"$f":"DaysAndWeeks+DATE(CalendarYear,2,1)-WEEKDAY(DATE(CalendarYear,2,1),(WeekStart=\"MON\")+1)+29","v":"2013-02-24"},"2013-02-25","2013-02-26","2013-02-27","2013-02-28","2013-03-01","2013-03-02"]
[null,null,{"$f":"IF(WEEKDAY(CalendarDay)=WeekStartValue,CONCATENATE(\"Week \",WEEKNUM(CalendarDay),\"/Day \",CalendarDay-DATE(YEAR(CalendarDay),1,0)),CONCATENATE(\"Day \",CalendarDay-DATE(YEAR(CalendarDay),1,0)))","v":"Week 9/Day 55"},{"$f":"IF(WEEKDAY(CalendarDay)=WeekStartValue,CONCATENATE(\"Week \",WEEKNUM(CalendarDay),\"/Day \",CalendarDay-DATE(YEAR(CalendarDay),1,0)),CONCATENATE(\"Day \",CalendarDay-DATE(YEAR(CalendarDay),1,0)))","v":"Day 56"},{"$f":"IF(WEEKDAY(CalendarDay)=WeekStartValue,CONCATENATE(\"Week \",WEEKNUM(CalendarDay),\"/Day \",CalendarDay-DATE(YEAR(CalendarDay),1,0)),CONCATENATE(\"Day \",CalendarDay-DATE(YEAR(CalendarDay),1,0)))","v":"Day 57"},{"$f":"IF(WEEKDAY(CalendarDay)=WeekStartValue,CONCATENATE(\"Week \",WEEKNUM(CalendarDay),\"/Day \",CalendarDay-DATE(YEAR(CalendarDay),1,0)),CONCATENATE(\"Day \",CalendarDay-DATE(YEAR(CalendarDay),1,0)))","v":"Day 58"},{"$f":"IF(WEEKDAY(CalendarDay)=WeekStartValue,CONCATENATE(\"Week \",WEEKNUM(CalendarDay),\"/Day \",CalendarDay-DATE(YEAR(CalendarDay),1,0)),CONCATENATE(\"Day \",CalendarDay-DATE(YEAR(CalendarDay),1,0)))","v":"Day 59"},{"$f":"IF(WEEKDAY(CalendarDay)=WeekStartValue,CONCATENATE(\"Week \",WEEKNUM(CalendarDay),\"/Day \",CalendarDay-DATE(YEAR(CalendarDay),1,0)),CONCATENATE(\"Day \",CalendarDay-DATE(YEAR(CalendarDay),1,0)))","v":"Day 60"},{"$f":"IF(WEEKDAY(CalendarDay)=WeekStartValue,CONCATENATE(\"Week \",WEEKNUM(CalendarDay),\"/Day \",CalendarDay-DATE(YEAR(CalendarDay),1,0)),CONCATENATE(\"Day \",CalendarDay-DATE(YEAR(CalendarDay),1,0)))","v":"Day 61"}]
[{"$nulls":4},"NOTES"]
[]
[null,null,{"$f":"DaysAndWeeks+DATE(CalendarYear,2,1)-WEEKDAY(DATE(CalendarYear,2,1),(WeekStart=\"MON\")+1)+36","v":"2013-03-03"},"2013-03-04"]
[null,null,{"$f":"IF(WEEKDAY(CalendarDay)=WeekStartValue,CONCATENATE(\"Week \",WEEKNUM(CalendarDay),\"/Day \",CalendarDay-DATE(YEAR(CalendarDay),1,0)),CONCATENATE(\"Day \",CalendarDay-DATE(YEAR(CalendarDay),1,0)))","v":"Week 10/Day 62"},{"$f":"IF(WEEKDAY(CalendarDay)=WeekStartValue,CONCATENATE(\"Week \",WEEKNUM(CalendarDay),\"/Day \",CalendarDay-DATE(YEAR(CalendarDay),1,0)),CONCATENATE(\"Day \",CalendarDay-DATE(YEAR(CalendarDay),1,0)))","v":"Day 63"}]

{"sheet":"MAR","index":2,"n_rows":20,"n_cols":10,"rows_kept":20,"merged":[[17,4,19,8]]}
[null,null,"SUN",{"$f":"UPPER(TEXT(D3,\"aaa\"))","v":"MON"},"TUE","WED","THU","FRI","SAT"," "]
[null,{"$f":"CalendarYear","v":2013},{"$nulls":7}," "]
[null,null,{"$f":"DaysAndWeeks+DATE(CalendarYear,3,1)-WEEKDAY(DATE(CalendarYear,3,1),(WeekStart=\"MON\")+1)+1","v":"2013-02-24"},"2013-02-25","2013-02-26","2013-02-27","2013-02-28","2013-03-01","2013-03-02"]
[null,null,{"$f":"IF(DAY(CalendarDay)=1,CONCATENATE(\"Week/\",WEEKNUM(CalendarDay),\" Day \",CalendarDay-DATE(YEAR(CalendarDay),1,0)),CONCATENATE(\"Day \",CalendarDay-DATE(YEAR(CalendarDay),1,0)))","v":"Day 55"},"Day 56","Day 57","Day 58","Day 59","Week/9 Day 60","Day 61"]
[]
[null,null,{"$f":"DaysAndWeeks+DATE(CalendarYear,3,1)-WEEKDAY(DATE(CalendarYear,3,1),(WeekStart=\"MON\")+1)+8","v":"2013-03-03"},"2013-03-04","2013-03-05","2013-03-06","2013-03-07","2013-03-08","2013-03-09"]
[null,null,{"$f":"IF(WEEKDAY(CalendarDay)=WeekStartValue,CONCATENATE(\"Week \",WEEKNUM(CalendarDay),\"/Day \",CalendarDay-DATE(YEAR(CalendarDay),1,0)),CONCATENATE(\"Day \",CalendarDay-DATE(YEAR(CalendarDay),1,0)))","v":"Week 10/Day 62"},{"$f":"IF(WEEKDAY(CalendarDay)=WeekStartValue,CONCATENATE(\"Week \",WEEKNUM(CalendarDay),\"/Day \",CalendarDay-DATE(YEAR(CalendarDay),1,0)),CONCATENATE(\"Day \",CalendarDay-DATE(YEAR(CalendarDay),1,0)))","v":"Day 63"},{"$f":"IF(WEEKDAY(CalendarDay)=WeekStartValue,CONCATENATE(\"Week \",WEEKNUM(CalendarDay),\"/Day \",CalendarDay-DATE(YEAR(CalendarDay),1,0)),CONCATENATE(\"Day \",CalendarDay-DATE(YEAR(CalendarDay),1,0)))","v":"Day 64"},{"$f":"IF(WEEKDAY(CalendarDay)=WeekStartValue,CONCATENATE(\"Week \",WEEKNUM(CalendarDay),\"/Day \",CalendarDay-DATE(YEAR(CalendarDay),1,0)),CONCATENATE(\"Day \",CalendarDay-DATE(YEAR(CalendarDay),1,0)))","v":"Day 65"},{"$f":"IF(WEEKDAY(CalendarDay)=WeekStartValue,CONCATENATE(\"Week \",WEEKNUM(CalendarDay),\"/Day \",CalendarDay-DATE(YEAR(CalendarDay),1,0)),CONCATENATE(\"Day \",CalendarDay-DATE(YEAR(CalendarDay),1,0)))","v":"Day 66"},{"$f":"IF(WEEKDAY(CalendarDay)=WeekStartValue,CONCATENATE(\"Week \",WEEKNUM(CalendarDay),\"/Day \",CalendarDay-DATE(YEAR(CalendarDay),1,0)),CONCATENATE(\"Day \",CalendarDay-DATE(YEAR(CalendarDay),1,0)))","v":"Day 67"},{"$f":"IF(WEEKDAY(CalendarDay)=WeekStartValue,CONCATENATE(\"Week \",WEEKNUM(CalendarDay),\"/Day \",CalendarDay-DATE(YEAR(CalendarDay),1,0)),CONCATENATE(\"Day \",CalendarDay-DATE(YEAR(CalendarDay),1,0)))","v":"Day 68"}]
[]
[null,null,{"$f":"DaysAndWeeks+DATE(CalendarYear,3,1)-WEEKDAY(DATE(CalendarYear,3,1),(WeekStart=\"MON\")+1)+15","v":"2013-03-10"},"2013-03-11","2013-03-12","2013-03-13","2013-03-14","2013-03-15","2013-03-16"]
[null,null,{"$f":"IF(WEEKDAY(CalendarDay)=WeekStartValue,CONCATENATE(\"Week \",WEEKNUM(CalendarDay),\"/Day \",CalendarDay-DATE(YEAR(CalendarDay),1,0)),CONCATENATE(\"Day \",CalendarDay-DATE(YEAR(CalendarDay),1,0)))","v":"Week 11/Day 69"},{"$f":"IF(WEEKDAY(CalendarDay)=WeekStartValue,CONCATENATE(\"Week \",WEEKNUM(CalendarDay),\"/Day \",CalendarDay-DATE(YEAR(CalendarDay),1,0)),CONCATENATE(\"Day \",CalendarDay-DATE(YEAR(CalendarDay),1,0)))","v":"Day 70"},{"$f":"IF(WEEKDAY(CalendarDay)=WeekStartValue,CONCATENATE(\"Week \",WEEKNUM(CalendarDay),\"/Day \",CalendarDay-DATE(YEAR(CalendarDay),1,0)),CONCATENATE(\"Day \",CalendarDay-DATE(YEAR(CalendarDay),1,0)))","v":"Day 71"},{"$f":"IF(WEEKDAY(CalendarDay)=WeekStartValue,CONCATENATE(\"Week \",WEEKNUM(CalendarDay),\"/Day \",CalendarDay-DATE(YEAR(CalendarDay),1,0)),CONCATENATE(\"Day \",CalendarDay-DATE(YEAR(CalendarDay),1,0)))","v":"Day 72"},{"$f":"IF(WEEKDAY(CalendarDay)=WeekStartValue,CONCATENATE(\"Week \",WEEKNUM(CalendarDay),\"/Day \",CalendarDay-DATE(YEAR(CalendarDay),1,0)),CONCATENATE(\"Day \",CalendarDay-DATE(YEAR(CalendarDay),1,0)))","v":"Day 73"},{"$f":"IF(WEEKDAY(CalendarDay)=WeekStartValue,CONCATENATE(\"Week \",WEEKNUM(CalendarDay),\"/Day \",CalendarDay-DATE(YEAR(CalendarDay),1,0)),CONCATENATE(\"Day \",CalendarDay-DATE(YEAR(CalendarDay),1,0)))","v":"Day 74"},{"$f":"IF(WEEKDAY(CalendarDay)=WeekStartValue,CONCATENATE(\"Week \",WEEKNUM(CalendarDay),\"/Day \",CalendarDay-DATE(YEAR(CalendarDay),1,0)),CONCATENATE(\"Day \",CalendarDay-DATE(YEAR(CalendarDay),1,0)))","v":"Day 75"}]
[]
[null,null,{"$f":"DaysAndWeeks+DATE(CalendarYear,3,1)-WEEKDAY(DATE(CalendarYear,3,1),(WeekStart=\"MON\")+1)+22","v":"2013-03-17"},"2013-03-18","2013-03-19","2013-03-20","2013-03-21","2013-03-22","2013-03-23"]
[null,null,{"$f":"IF(WEEKDAY(CalendarDay)=WeekStartValue,CONCATENATE(\"Week \",WEEKNUM(CalendarDay),\"/Day \",CalendarDay-DATE(YEAR(CalendarDay),1,0)),CONCATENATE(\"Day \",CalendarDay-DATE(YEAR(CalendarDay),1,0)))","v":"Week 12/Day 76"},{"$f":"IF(WEEKDAY(CalendarDay)=WeekStartValue,CONCATENATE(\"Week \",WEEKNUM(CalendarDay),\"/Day \",CalendarDay-DATE(YEAR(CalendarDay),1,0)),CONCATENATE(\"Day \",CalendarDay-DATE(YEAR(CalendarDay),1,0)))","v":"Day 77"},{"$f":"IF(WEEKDAY(CalendarDay)=WeekStartValue,CONCATENATE(\"Week \",WEEKNUM(CalendarDay),\"/Day \",CalendarDay-DATE(YEAR(CalendarDay),1,0)),CONCATENATE(\"Day \",CalendarDay-DATE(YEAR(CalendarDay),1,0)))","v":"Day 78"},{"$f":"IF(WEEKDAY(CalendarDay)=WeekStartValue,CONCATENATE(\"Week \",WEEKNUM(CalendarDay),\"/Day \",CalendarDay-DATE(YEAR(CalendarDay),1,0)),CONCATENATE(\"Day \",CalendarDay-DATE(YEAR(CalendarDay),1,0)))","v":"Day 79"},{"$f":"IF(WEEKDAY(CalendarDay)=WeekStartValue,CONCATENATE(\"Week \",WEEKNUM(CalendarDay),\"/Day \",CalendarDay-DATE(YEAR(CalendarDay),1,0)),CONCATENATE(\"Day \",CalendarDay-DATE(YEAR(CalendarDay),1,0)))","v":"Day 80"},{"$f":"IF(WEEKDAY(CalendarDay)=WeekStartValue,CONCATENATE(\"Week \",WEEKNUM(CalendarDay),\"/Day \",CalendarDay-DATE(YEAR(CalendarDay),1,0)),CONCATENATE(\"Day \",CalendarDay-DATE(YEAR(CalendarDay),1,0)))","v":"Day 81"},{"$f":"IF(WEEKDAY(CalendarDay)=WeekStartValue,CONCATENATE(\"Week \",WEEKNUM(CalendarDay),\"/Day \",CalendarDay-DATE(YEAR(CalendarDay),1,0)),CONCATENATE(\"Day \",CalendarDay-DATE(YEAR(CalendarDay),1,0)))","v":"Day 82"}]
[]
[null,null,{"$f":"DaysAndWeeks+DATE(CalendarYear,3,1)-WEEKDAY(DATE(CalendarYear,3,1),(WeekStart=\"MON\")+1)+29","v":"2013-03-24"},"2013-03-25","2013-03-26","2013-03-27","2013-03-28","2013-03-29","2013-03-30"]
[null,null,{"$f":"IF(WEEKDAY(CalendarDay)=WeekStartValue,CONCATENATE(\"Week \",WEEKNUM(CalendarDay),\"/Day \",CalendarDay-DATE(YEAR(CalendarDay),1,0)),CONCATENATE(\"Day \",CalendarDay-DATE(YEAR(CalendarDay),1,0)))","v":"Week 13/Day 83"},{"$f":"IF(WEEKDAY(CalendarDay)=WeekStartValue,CONCATENATE(\"Week \",WEEKNUM(CalendarDay),\"/Day \",CalendarDay-DATE(YEAR(CalendarDay),1,0)),CONCATENATE(\"Day \",CalendarDay-DATE(YEAR(CalendarDay),1,0)))","v":"Day 84"},{"$f":"IF(WEEKDAY(CalendarDay)=WeekStartValue,CONCATENATE(\"Week \",WEEKNUM(CalendarDay),\"/Day \",CalendarDay-DATE(YEAR(CalendarDay),1,0)),CONCATENATE(\"Day \",CalendarDay-DATE(YEAR(CalendarDay),1,0)))","v":"Day 85"},{"$f":"IF(WEEKDAY(CalendarDay)=WeekStartValue,CONCATENATE(\"Week \",WEEKNUM(CalendarDay),\"/Day \",CalendarDay-DATE(YEAR(CalendarDay),1,0)),CONCATENATE(\"Day \",CalendarDay-DATE(YEAR(CalendarDay),1,0)))","v":"Day 86"},{"$f":"IF(WEEKDAY(CalendarDay)=WeekStartValue,CONCATENATE(\"Week \",WEEKNUM(CalendarDay),\"/Day \",CalendarDay-DATE(YEAR(CalendarDay),1,0)),CONCATENATE(\"Day \",CalendarDay-DATE(YEAR(CalendarDay),1,0)))","v":"Day 87"},{"$f":"IF(WEEKDAY(CalendarDay)=WeekStartValue,CONCATENATE(\"Week \",WEEKNUM(CalendarDay),\"/Day \",CalendarDay-DATE(YEAR(CalendarDay),1,0)),CONCATENATE(\"Day \",CalendarDay-DATE(YEAR(CalendarDay),1,0)))","v":"Day 88"},{"$f":"IF(WEEKDAY(CalendarDay)=WeekStartValue,CONCATENATE(\"Week \",WEEKNUM(CalendarDay),\"/Day \",CalendarDay-DATE(YEAR(CalendarDay),1,0)),CONCATENATE(\"Day \",CalendarDay-DATE(YEAR(CalendarDay),1,0)))","v":"Day 89"}]
[{"$nulls":4},"NOTES"]
[]
[null,null,{"$f":"DaysAndWeeks+DATE(CalendarYear,3,1)-WEEKDAY(DATE(CalendarYear,3,1),(WeekStart=\"MON\")+1)+36","v":"2013-03-31"},"2013-04-01"]
[null,null,{"$f":"IF(WEEKDAY(CalendarDay)=WeekStartValue,CONCATENATE(\"Week \",WEEKNUM(CalendarDay),\"/Day \",CalendarDay-DATE(YEAR(CalendarDay),1,0)),CONCATENATE(\"Day \",CalendarDay-DATE(YEAR(CalendarDay),1,0)))","v":"Week 14/Day 90"},{"$f":"IF(WEEKDAY(CalendarDay)=WeekStartValue,CONCATENATE(\"Week \",WEEKNUM(CalendarDay),\"/Day \",CalendarDay-DATE(YEAR(CalendarDay),1,0)),CONCATENATE(\"Day \",CalendarDay-DATE(YEAR(CalendarDay),1,0)))","v":"Day 91"}]

{"sheet":"APR","index":3,"n_rows":20,"n_cols":10,"rows_kept":20,"merged":[[17,4,19,8]]}
[null,null,"SUN",{"$f":"UPPER(TEXT(D3,\"aaa\"))","v":"MON"},"TUE","WED","THU","FRI","SAT"," "]
[null,{"$f":"CalendarYear","v":2013},{"$nulls":7}," "]
[null,null,{"$f":"DaysAndWeeks+DATE(CalendarYear,4,1)-WEEKDAY(DATE(CalendarYear,4,1),(WeekStart=\"MON\")+1)+1","v":"2013-03-31"},"2013-04-01","2013-04-02","2013-04-03","2013-04-04","2013-04-05","2013-04-06"]
[null,null,{"$f":"IF(DAY(CalendarDay)=1,CONCATENATE(\"Week/\",WEEKNUM(CalendarDay),\" Day \",CalendarDay-DATE(YEAR(CalendarDay),1,0)),CONCATENATE(\"Day \",CalendarDay-DATE(YEAR(CalendarDay),1,0)))","v":"Day 90"},"Week/14 Day 91","Day 92","Day 93","Day 94","Day 95","Day 96"]
[]
[null,null,{"$f":"DaysAndWeeks+DATE(CalendarYear,4,1)-WEEKDAY(DATE(CalendarYear,4,1),(WeekStart=\"MON\")+1)+8","v":"2013-04-07"},"2013-04-08","2013-04-09","2013-04-10","2013-04-11","2013-04-12","2013-04-13"]
[null,null,{"$f":"IF(WEEKDAY(CalendarDay)=WeekStartValue,CONCATENATE(\"Week \",WEEKNUM(CalendarDay),\"/Day \",CalendarDay-DATE(YEAR(CalendarDay),1,0)),CONCATENATE(\"Day \",CalendarDay-DATE(YEAR(CalendarDay),1,0)))","v":"Week 15/Day 97"},{"$f":"IF(WEEKDAY(CalendarDay)=WeekStartValue,CONCATENATE(\"Week \",WEEKNUM(CalendarDay),\"/Day \",CalendarDay-DATE(YEAR(CalendarDay),1,0)),CONCATENATE(\"Day \",CalendarDay-DATE(YEAR(CalendarDay),1,0)))","v":"Day 98"},{"$f":"IF(WEEKDAY(CalendarDay)=WeekStartValue,CONCATENATE(\"Week \",WEEKNUM(CalendarDay),\"/Day \",CalendarDay-DATE(YEAR(CalendarDay),1,0)),CONCATENATE(\"Day \",CalendarDay-DATE(YEAR(CalendarDay),1,0)))","v":"Day 99"},{"$f":"IF(WEEKDAY(CalendarDay)=WeekStartValue,CONCATENATE(\"Week \",WEEKNUM(CalendarDay),\"/Day \",CalendarDay-DATE(YEAR(CalendarDay),1,0)),CONCATENATE(\"Day \",CalendarDay-DATE(YEAR(CalendarDay),1,0)))","v":"Day 100"},{"$f":"IF(WEEKDAY(CalendarDay)=WeekStartValue,CONCATENATE(\"Week \",WEEKNUM(CalendarDay),\"/Day \",CalendarDay-DATE(YEAR(CalendarDay),1,0)),CONCATENATE(\"Day \",CalendarDay-DATE(YEAR(CalendarDay),1,0)))","v":"Day 101"},{"$f":"IF(WEEKDAY(CalendarDay)=WeekStartValue,CONCATENATE(\"Week \",WEEKNUM(CalendarDay),\"/Day \",CalendarDay-DATE(YEAR(CalendarDay),1,0)),CONCATENATE(\"Day \",CalendarDay-DATE(YEAR(CalendarDay),1,0)))","v":"Day 102"},{"$f":"IF(WEEKDAY(CalendarDay)=WeekStartValue,CONCATENATE(\"Week \",WEEKNUM(CalendarDay),\"/Day \",CalendarDay-DATE(YEAR(CalendarDay),1,0)),CONCATENATE(\"Day \",CalendarDay-DATE(YEAR(CalendarDay),1,0)))","v":"Day 103"}]
[]
[null,null,{"$f":"DaysAndWeeks+DATE(CalendarYear,4,1)-WEEKDAY(DATE(CalendarYear,4,1),(WeekStart=\"MON\")+1)+15","v":"2013-04-14"},"2013-04-15","2013-04-16","2013-04-17","2013-04-18","2013-04-19","2013-04-20"]
[null,null,{"$f":"IF(WEEKDAY(CalendarDay)=WeekStartValue,CONCATENATE(\"Week \",WEEKNUM(CalendarDay),\"/Day \",CalendarDay-DATE(YEAR(CalendarDay),1,0)),CONCATENATE(\"Day \",CalendarDay-DATE(YEAR(CalendarDay),1,0)))","v":"Week 16/Day 104"},{"$f":"IF(WEEKDAY(CalendarDay)=WeekStartValue,CONCATENATE(\"Week \",WEEKNUM(CalendarDay),\"/Day \",CalendarDay-DATE(YEAR(CalendarDay),1,0)),CONCATENATE(\"Day \",CalendarDay-DATE(YEAR(CalendarDay),1,0)))","v":"Day 105"},{"$f":"IF(WEEKDAY(CalendarDay)=WeekStartValue,CONCATENATE(\"Week \",WEEKNUM(CalendarDay),\"/Day \",CalendarDay-DATE(YEAR(CalendarDay),1,0)),CONCATENATE(\"Day \",CalendarDay-DATE(YEAR(CalendarDay),1,0)))","v":"Day 106"},{"$f":"IF(WEEKDAY(CalendarDay)=WeekStartValue,CONCATENATE(\"Week \",WEEKNUM(CalendarDay),\"/Day \",CalendarDay-DATE(YEAR(CalendarDay),1,0)),CONCATENATE(\"Day \",CalendarDay-DATE(YEAR(CalendarDay),1,0)))","v":"Day 107"},{"$f":"IF(WEEKDAY(CalendarDay)=WeekStartValue,CONCATENATE(\"Week \",WEEKNUM(CalendarDay),\"/Day \",CalendarDay-DATE(YEAR(CalendarDay),1,0)),CONCATENATE(\"Day \",CalendarDay-DATE(YEAR(CalendarDay),1,0)))","v":"Day 108"},{"$f":"IF(WEEKDAY(CalendarDay)=WeekStartValue,CONCATENATE(\"Week \",WEEKNUM(CalendarDay),\"/Day \",CalendarDay-DATE(YEAR(CalendarDay),1,0)),CONCATENATE(\"Day \",CalendarDay-DATE(YEAR(CalendarDay),1,0)))","v":"Day 109"},{"$f":"IF(WEEKDAY(CalendarDay)=WeekStartValue,CONCATENATE(\"Week \",WEEKNUM(CalendarDay),\"/Day \",CalendarDay-DATE(YEAR(CalendarDay),1,0)),CONCATENATE(\"Day \",CalendarDay-DATE(YEAR(CalendarDay),1,0)))","v":"Day 110"}]
[]
[null,null,{"$f":"DaysAndWeeks+DATE(CalendarYear,4,1)-WEEKDAY(DATE(CalendarYear,4,1),(WeekStart=\"MON\")+1)+22","v":"2013-04-21"},"2013-04-22","2013-04-23","2013-04-24","2013-04-25","2013-04-26","2013-04-27"]
[null,null,{"$f":"IF(WEEKDAY(CalendarDay)=WeekStartValue,CONCATENATE(\"Week \",WEEKNUM(CalendarDay),\"/Day \",CalendarDay-DATE(YEAR(CalendarDay),1,0)),CONCATENATE(\"Day \",CalendarDay-DATE(YEAR(CalendarDay),1,0)))","v":"Week 17/Day 111"},{"$f":"IF(WEEKDAY(CalendarDay)=WeekStartValue,CONCATENATE(\"Week \",WEEKNUM(CalendarDay),\"/Day \",CalendarDay-DATE(YEAR(CalendarDay),1,0)),CONCATENATE(\"Day \",CalendarDay-DATE(YEAR(CalendarDay),1,0)))","v":"Day 112"},{"$f":"IF(WEEKDAY(CalendarDay)=WeekStartValue,CONCATENATE(\"Week \",WEEKNUM(CalendarDay),\"/Day \",CalendarDay-DATE(YEAR(CalendarDay),1,0)),CONCATENATE(\"Day \",CalendarDay-DATE(YEAR(CalendarDay),1,0)))","v":"Day 113"},{"$f":"IF(WEEKDAY(CalendarDay)=WeekStartValue,CONCATENATE(\"Week \",WEEKNUM(CalendarDay),\"/Day \",CalendarDay-DATE(YEAR(CalendarDay),1,0)),CONCATENATE(\"Day \",CalendarDay-DATE(YEAR(CalendarDay),1,0)))","v":"Day 114"},{"$f":"IF(WEEKDAY(CalendarDay)=WeekStartValue,CONCATENATE(\"Week \",WEEKNUM(CalendarDay),\"/Day \",CalendarDay-DATE(YEAR(CalendarDay),1,0)),CONCATENATE(\"Day \",CalendarDay-DATE(YEAR(CalendarDay),1,0)))","v":"Day 115"},{"$f":"IF(WEEKDAY(CalendarDay)=WeekStartValue,CONCATENATE(\"Week \",WEEKNUM(CalendarDay),\"/Day \",CalendarDay-DATE(YEAR(CalendarDay),1,0)),CONCATENATE(\"Day \",CalendarDay-DATE(YEAR(CalendarDay),1,0)))","v":"Day 116"},{"$f":"IF(WEEKDAY(CalendarDay)=WeekStartValue,CONCATENATE(\"Week \",WEEKNUM(CalendarDay),\"/Day \",CalendarDay-DATE(YEAR(CalendarDay),1,0)),CONCATENATE(\"Day \",CalendarDay-DATE(YEAR(CalendarDay),1,0)))","v":"Day 117"}]
[]
[null,null,{"$f":"DaysAndWeeks+DATE(CalendarYear,4,1)-WEEKDAY(DATE(CalendarYear,4,1),(WeekStart=\"MON\")+1)+29","v":"2013-04-28"},"2013-04-29","2013-04-30","2013-05-01","2013-05-02","2013-05-03","2013-05-04"]
[null,null,{"$f":"IF(WEEKDAY(CalendarDay)=WeekStartValue,CONCATENATE(\"Week \",WEEKNUM(CalendarDay),\"/Day \",CalendarDay-DATE(YEAR(CalendarDay),1,0)),CONCATENATE(\"Day \",CalendarDay-DATE(YEAR(CalendarDay),1,0)))","v":"Week 18/Day 118"},{"$f":"IF(WEEKDAY(CalendarDay)=WeekStartValue,CONCATENATE(\"Week \",WEEKNUM(CalendarDay),\"/Day \",CalendarDay-DATE(YEAR(CalendarDay),1,0)),CONCATENATE(\"Day \",CalendarDay-DATE(YEAR(CalendarDay),1,0)))","v":"Day 119"},{"$f":"IF(WEEKDAY(CalendarDay)=WeekStartValue,CONCATENATE(\"Week \",WEEKNUM(CalendarDay),\"/Day \",CalendarDay-DATE(YEAR(CalendarDay),1,0)),CONCATENATE(\"Day \",CalendarDay-DATE(YEAR(CalendarDay),1,0)))","v":"Day 120"},{"$f":"IF(WEEKDAY(CalendarDay)=WeekStartValue,CONCATENATE(\"Week \",WEEKNUM(CalendarDay),\"/Day \",CalendarDay-DATE(YEAR(CalendarDay),1,0)),CONCATENATE(\"Day \",CalendarDay-DATE(YEAR(CalendarDay),1,0)))","v":"Day 121"},{"$f":"IF(WEEKDAY(CalendarDay)=WeekStartValue,CONCATENATE(\"Week \",WEEKNUM(CalendarDay),\"/Day \",CalendarDay-DATE(YEAR(CalendarDay),1,0)),CONCATENATE(\"Day \",CalendarDay-DATE(YEAR(CalendarDay),1,0)))","v":"Day 122"},{"$f":"IF(WEEKDAY(CalendarDay)=WeekStartValue,CONCATENATE(\"Week \",WEEKNUM(CalendarDay),\"/Day \",CalendarDay-DATE(YEAR(CalendarDay),1,0)),CONCATENATE(\"Day \",CalendarDay-DATE(YEAR(CalendarDay),1,0)))","v":"Day 123"},{"$f":"IF(WEEKDAY(CalendarDay)=WeekStartValue,CONCATENATE(\"Week \",WEEKNUM(CalendarDay),\"/Day \",CalendarDay-DATE(YEAR(CalendarDay),1,0)),CONCATENATE(\"Day \",CalendarDay-DATE(YEAR(CalendarDay),1,0)))","v":"Day 124"}]
[{"$nulls":4},"NOTES"]
[]
[null,null,{"$f":"DaysAndWeeks+DATE(CalendarYear,4,1)-WEEKDAY(DATE(CalendarYear,4,1),(WeekStart=\"MON\")+1)+36","v":"2013-05-05"},"2013-05-06"]
[null,null,{"$f":"IF(WEEKDAY(CalendarDay)=WeekStartValue,CONCATENATE(\"Week \",WEEKNUM(CalendarDay),\"/Day \",CalendarDay-DATE(YEAR(CalendarDay),1,0)),CONCATENATE(\"Day \",CalendarDay-DATE(YEAR(CalendarDay),1,0)))","v":"Week 19/Day 125"},{"$f":"IF(WEEKDAY(CalendarDay)=WeekStartValue,CONCATENATE(\"Week \",WEEKNUM(CalendarDay),\"/Day \",CalendarDay-DATE(YEAR(CalendarDay),1,0)),CONCATENATE(\"Day \",CalendarDay-DATE(YEAR(CalendarDay),1,0)))","v":"Day 126"}]

{"sheet":"MAY","index":4,"n_rows":20,"n_cols":10,"rows_kept":20,"merged":[[17,4,19,8]]}
[null,null,"SUN",{"$f":"UPPER(TEXT(D3,\"aaa\"))","v":"MON"},"TUE","WED","THU","FRI","SAT"," "]
[null,{"$f":"CalendarYear","v":2013},{"$nulls":7}," "]
[null,null,{"$f":"DaysAndWeeks+DATE(CalendarYear,5,1)-WEEKDAY(DATE(CalendarYear,5,1),(WeekStart=\"MON\")+1)+1","v":"2013-04-28"},"2013-04-29","2013-04-30","2013-05-01","2013-05-02","2013-05-03","2013-05-04"]
[null,null,{"$f":"IF(DAY(CalendarDay)=1,CONCATENATE(\"Week/\",WEEKNUM(CalendarDay),\" Day \",CalendarDay-DATE(YEAR(CalendarDay),1,0)),CONCATENATE(\"Day \",CalendarDay-DATE(YEAR(CalendarDay),1,0)))","v":"Day 118"},"Day 119","Day 120","Week/18 Day 121","Day 122","Day 123","Day 124"]
[]
[null,null,{"$f":"DaysAndWeeks+DATE(CalendarYear,5,1)-WEEKDAY(DATE(CalendarYear,5,1),(WeekStart=\"MON\")+1)+8","v":"2013-05-05"},"2013-05-06","2013-05-07","2013-05-08","2013-05-09","2013-05-10","2013-05-11"]
[null,null,{"$f":"IF(WEEKDAY(CalendarDay)=WeekStartValue,CONCATENATE(\"Week \",WEEKNUM(CalendarDay),\"/Day \",CalendarDay-DATE(YEAR(CalendarDay),1,0)),CONCATENATE(\"Day \",CalendarDay-DATE(YEAR(CalendarDay),1,0)))","v":"Week 19/Day 125"},{"$f":"IF(WEEKDAY(CalendarDay)=WeekStartValue,CONCATENATE(\"Week \",WEEKNUM(CalendarDay),\"/Day \",CalendarDay-DATE(YEAR(CalendarDay),1,0)),CONCATENATE(\"Day \",CalendarDay-DATE(YEAR(CalendarDay),1,0)))","v":"Day 126"},{"$f":"IF(WEEKDAY(CalendarDay)=WeekStartValue,CONCATENATE(\"Week \",WEEKNUM(CalendarDay),\"/Day \",CalendarDay-DATE(YEAR(CalendarDay),1,0)),CONCATENATE(\"Day \",CalendarDay-DATE(YEAR(CalendarDay),1,0)))","v":"Day 127"},{"$f":"IF(WEEKDAY(CalendarDay)=WeekStartValue,CONCATENATE(\"Week \",WEEKNUM(CalendarDay),\"/Day \",CalendarDay-DATE(YEAR(CalendarDay),1,0)),CONCATENATE(\"Day \",CalendarDay-DATE(YEAR(CalendarDay),1,0)))","v":"Day 128"},{"$f":"IF(WEEKDAY(CalendarDay)=WeekStartValue,CONCATENATE(\"Week \",WEEKNUM(CalendarDay),\"/Day \",CalendarDay-DATE(YEAR(CalendarDay),1,0)),CONCATENATE(\"Day \",CalendarDay-DATE(YEAR(CalendarDay),1,0)))","v":"Day 129"},{"$f":"IF(WEEKDAY(CalendarDay)=WeekStartValue,CONCATENATE(\"Week \",WEEKNUM(CalendarDay),\"/Day \",CalendarDay-DATE(YEAR(CalendarDay),1,0)),CONCATENATE(\"Day \",CalendarDay-DATE(YEAR(CalendarDay),1,0)))","v":"Day 130"},{"$f":"IF(WEEKDAY(CalendarDay)=WeekStartValue,CONCATENATE(\"Week \",WEEKNUM(CalendarDay),\"/Day \",CalendarDay-DATE(YEAR(CalendarDay),1,0)),CONCATENATE(\"Day \",CalendarDay-DATE(YEAR(CalendarDay),1,0)))","v":"Day 131"}]
[]
[null,null,{"$f":"DaysAndWeeks+DATE(CalendarYear,5,1)-WEEKDAY(DATE(CalendarYear,5,1),(WeekStart=\"MON\")+1)+15","v":"2013-05-12"},"2013-05-13","2013-05-14","2013-05-15","2013-05-16","2013-05-17","2013-05-18"]
[null,null,{"$f":"IF(WEEKDAY(CalendarDay)=WeekStartValue,CONCATENATE(\"Week \",WEEKNUM(CalendarDay),\"/Day \",CalendarDay-DATE(YEAR(CalendarDay),1,0)),CONCATENATE(\"Day \",CalendarDay-DATE(YEAR(CalendarDay),1,0)))","v":"Week 20/Day 132"},{"$f":"IF(WEEKDAY(CalendarDay)=WeekStartValue,CONCATENATE(\"Week \",WEEKNUM(CalendarDay),\"/Day \",CalendarDay-DATE(YEAR(CalendarDay),1,0)),CONCATENATE(\"Day \",CalendarDay-DATE(YEAR(CalendarDay),1,0)))","v":"Day 133"},{"$f":"IF(WEEKDAY(CalendarDay)=WeekStartValue,CONCATENATE(\"Week \",WEEKNUM(CalendarDay),\"/Day \",CalendarDay-DATE(YEAR(CalendarDay),1,0)),CONCATENATE(\"Day \",CalendarDay-DATE(YEAR(CalendarDay),1,0)))","v":"Day 134"},{"$f":"IF(WEEKDAY(CalendarDay)=WeekStartValue,CONCATENATE(\"Week \",WEEKNUM(CalendarDay),\"/Day \",CalendarDay-DATE(YEAR(CalendarDay),1,0)),CONCATENATE(\"Day \",CalendarDay-DATE(YEAR(CalendarDay),1,0)))","v":"Day 135"},{"$f":"IF(WEEKDAY(CalendarDay)=WeekStartValue,CONCATENATE(\"Week \",WEEKNUM(CalendarDay),\"/Day \",CalendarDay-DATE(YEAR(CalendarDay),1,0)),CONCATENATE(\"Day \",CalendarDay-DATE(YEAR(CalendarDay),1,0)))","v":"Day 136"},{"$f":"IF(WEEKDAY(CalendarDay)=WeekStartValue,CONCATENATE(\"Week \",WEEKNUM(CalendarDay),\"/Day \",CalendarDay-DATE(YEAR(CalendarDay),1,0)),CONCATENATE(\"Day \",CalendarDay-DATE(YEAR(CalendarDay),1,0)))","v":"Day 137"},{"$f":"IF(WEEKDAY(CalendarDay)=WeekStartValue,CONCATENATE(\"Week \",WEEKNUM(CalendarDay),\"/Day \",CalendarDay-DATE(YEAR(CalendarDay),1,0)),CONCATENATE(\"Day \",CalendarDay-DATE(YEAR(CalendarDay),1,0)))","v":"Day 138"}]
[]
[null,null,{"$f":"DaysAndWeeks+DATE(CalendarYear,5,1)-WEEKDAY(DATE(CalendarYear,5,1),(WeekStart=\"MON\")+1)+22","v":"2013-05-19"},"2013-05-20","2013-05-21","2013-05-22","2013-05-23","2013-05-24","2013-05-25"]
[null,null,{"$f":"IF(WEEKDAY(CalendarDay)=WeekStartValue,CONCATENATE(\"Week \",WEEKNUM(CalendarDay),\"/Day \",CalendarDay-DATE(YEAR(CalendarDay),1,0)),CONCATENATE(\"Day \",CalendarDay-DATE(YEAR(CalendarDay),1,0)))","v":"Week 21/Day 139"},{"$f":"IF(WEEKDAY(CalendarDay)=WeekStartValue,CONCATENATE(\"Week \",WEEKNUM(CalendarDay),\"/Day \",CalendarDay-DATE(YEAR(CalendarDay),1,0)),CONCATENATE(\"Day \",CalendarDay-DATE(YEAR(CalendarDay),1,0)))","v":"Day 140"},{"$f":"IF(WEEKDAY(CalendarDay)=WeekStartValue,CONCATENATE(\"Week \",WEEKNUM(CalendarDay),\"/Day \",CalendarDay-DATE(YEAR(CalendarDay),1,0)),CONCATENATE(\"Day \",CalendarDay-DATE(YEAR(CalendarDay),1,0)))","v":"Day 141"},{"$f":"IF(WEEKDAY(CalendarDay)=WeekStartValue,CONCATENATE(\"Week \",WEEKNUM(CalendarDay),\"/Day \",CalendarDay-DATE(YEAR(CalendarDay),1,0)),CONCATENATE(\"Day \",CalendarDay-DATE(YEAR(CalendarDay),1,0)))","v":"Day 142"},{"$f":"IF(WEEKDAY(CalendarDay)=WeekStartValue,CONCATENATE(\"Week \",WEEKNUM(CalendarDay),\"/Day \",CalendarDay-DATE(YEAR(CalendarDay),1,0)),CONCATENATE(\"Day \",CalendarDay-DATE(YEAR(CalendarDay),1,0)))","v":"Day 143"},{"$f":"IF(WEEKDAY(CalendarDay)=WeekStartValue,CONCATENATE(\"Week \",WEEKNUM(CalendarDay),\"/Day \",CalendarDay-DATE(YEAR(CalendarDay),1,0)),CONCATENATE(\"Day \",CalendarDay-DATE(YEAR(CalendarDay),1,0)))","v":"Day 144"},{"$f":"IF(WEEKDAY(CalendarDay)=WeekStartValue,CONCATENATE(\"Week \",WEEKNUM(CalendarDay),\"/Day \",CalendarDay-DATE(YEAR(CalendarDay),1,0)),CONCATENATE(\"Day \",CalendarDay-DATE(YEAR(CalendarDay),1,0)))","v":"Day 145"}]
[]
[null,null,{"$f":"DaysAndWeeks+DATE(CalendarYear,5,1)-WEEKDAY(DATE(CalendarYear,5,1),(WeekStart=\"MON\")+1)+29","v":"2013-05-26"},"2013-05-27","2013-05-28","2013-05-29","2013-05-30","2013-05-31","2013-06-01"]
[null,null,{"$f":"IF(WEEKDAY(CalendarDay)=WeekStartValue,CONCATENATE(\"Week \",WEEKNUM(CalendarDay),\"/Day \",CalendarDay-DATE(YEAR(CalendarDay),1,0)),CONCATENATE(\"Day \",CalendarDay-DATE(YEAR(CalendarDay),1,0)))","v":"Week 22/Day 146"},{"$f":"IF(WEEKDAY(CalendarDay)=WeekStartValue,CONCATENATE(\"Week \",WEEKNUM(CalendarDay),\"/Day \",CalendarDay-DATE(YEAR(CalendarDay),1,0)),CONCATENATE(\"Day \",CalendarDay-DATE(YEAR(CalendarDay),1,0)))","v":"Day 147"},{"$f":"IF(WEEKDAY(CalendarDay)=WeekStartValue,CONCATENATE(\"Week \",WEEKNUM(CalendarDay),\"/Day \",CalendarDay-DATE(YEAR(CalendarDay),1,0)),CONCATENATE(\"Day \",CalendarDay-DATE(YEAR(CalendarDay),1,0)))","v":"Day 148"},{"$f":"IF(WEEKDAY(CalendarDay)=WeekStartValue,CONCATENATE(\"Week \",WEEKNUM(CalendarDay),\"/Day \",CalendarDay-DATE(YEAR(CalendarDay),1,0)),CONCATENATE(\"Day \",CalendarDay-DATE(YEAR(CalendarDay),1,0)))","v":"Day 149"},{"$f":"IF(WEEKDAY(CalendarDay)=WeekStartValue,CONCATENATE(\"Week \",WEEKNUM(CalendarDay),\"/Day \",CalendarDay-DATE(YEAR(CalendarDay),1,0)),CONCATENATE(\"Day \",CalendarDay-DATE(YEAR(CalendarDay),1,0)))","v":"Day 150"},{"$f":"IF(WEEKDAY(CalendarDay)=WeekStartValue,CONCATENATE(\"Week \",WEEKNUM(CalendarDay),\"/Day \",CalendarDay-DATE(YEAR(CalendarDay),1,0)),CONCATENATE(\"Day \",CalendarDay-DATE(YEAR(CalendarDay),1,0)))","v":"Day 151"},{"$f":"IF(WEEKDAY(CalendarDay)=WeekStartValue,CONCATENATE(\"Week \",WEEKNUM(CalendarDay),\"/Day \",CalendarDay-DATE(YEAR(CalendarDay),1,0)),CONCATENATE(\"Day \",CalendarDay-DATE(YEAR(CalendarDay),1,0)))","v":"Day 152"}]
[{"$nulls":4},"NOTES"]
[]
[null,null,{"$f":"DaysAndWeeks+DATE(CalendarYear,5,1)-WEEKDAY(DATE(CalendarYear,5,1),(WeekStart=\"MON\")+1)+36","v":"2013-06-02"},"2013-06-03"]
[null,null,{"$f":"IF(WEEKDAY(CalendarDay)=WeekStartValue,CONCATENATE(\"Week \",WEEKNUM(CalendarDay),\"/Day \",CalendarDay-DATE(YEAR(CalendarDay),1,0)),CONCATENATE(\"Day \",CalendarDay-DATE(YEAR(CalendarDay),1,0)))","v":"Week 23/Day 153"},{"$f":"IF(WEEKDAY(CalendarDay)=WeekStartValue,CONCATENATE(\"Week \",WEEKNUM(CalendarDay),\"/Day \",CalendarDay-DATE(YEAR(CalendarDay),1,0)),CONCATENATE(\"Day \",CalendarDay-DATE(YEAR(CalendarDay),1,0)))","v":"Day 154"}]

{"sheet":"JUN","index":5,"n_rows":20,"n_cols":10,"rows_kept":20,"merged":[[17,4,19,8]]}
[null,null,"SUN",{"$f":"UPPER(TEXT(D3,\"aaa\"))","v":"MON"},"TUE","WED","THU","FRI","SAT"," "]
[null,{"$f":"CalendarYear","v":2013},{"$nulls":7}," "]
[null,null,{"$f":"DaysAndWeeks+DATE(CalendarYear,6,1)-WEEKDAY(DATE(CalendarYear,6,1),(WeekStart=\"MON\")+1)+1","v":"2013-05-26"},"2013-05-27","2013-05-28","2013-05-29","2013-05-30","2013-05-31","2013-06-01"]
[null,null,{"$f":"IF(DAY(CalendarDay)=1,CONCATENATE(\"Week/\",WEEKNUM(CalendarDay),\" Day \",CalendarDay-DATE(YEAR(CalendarDay),1,0)),CONCATENATE(\"Day \",CalendarDay-DATE(YEAR(CalendarDay),1,0)))","v":"Day 146"},"Day 147","Day 148","Day 149","Day 150","Day 151","Week/22 Day 152"]
[]
[null,null,{"$f":"DaysAndWeeks+DATE(CalendarYear,6,1)-WEEKDAY(DATE(CalendarYear,6,1),(WeekStart=\"MON\")+1)+8","v":"2013-06-02"},"2013-06-03","2013-06-04","2013-06-05","2013-06-06","2013-06-07","2013-06-08"]
[null,null,{"$f":"IF(WEEKDAY(CalendarDay)=WeekStartValue,CONCATENATE(\"Week \",WEEKNUM(CalendarDay),\"/Day \",CalendarDay-DATE(YEAR(CalendarDay),1,0)),CONCATENATE(\"Day \",CalendarDay-DATE(YEAR(CalendarDay),1,0)))","v":"Week 23/Day 153"},{"$f":"IF(WEEKDAY(CalendarDay)=WeekStartValue,CONCATENATE(\"Week \",WEEKNUM(CalendarDay),\"/Day \",CalendarDay-DATE(YEAR(CalendarDay),1,0)),CONCATENATE(\"Day \",CalendarDay-DATE(YEAR(CalendarDay),1,0)))","v":"Day 154"},{"$f":"IF(WEEKDAY(CalendarDay)=WeekStartValue,CONCATENATE(\"Week \",WEEKNUM(CalendarDay),\"/Day \",CalendarDay-DATE(YEAR(CalendarDay),1,0)),CONCATENATE(\"Day \",CalendarDay-DATE(YEAR(CalendarDay),1,0)))","v":"Day 155"},{"$f":"IF(WEEKDAY(CalendarDay)=WeekStartValue,CONCATENATE(\"Week \",WEEKNUM(CalendarDay),\"/Day \",CalendarDay-DATE(YEAR(CalendarDay),1,0)),CONCATENATE(\"Day \",CalendarDay-DATE(YEAR(CalendarDay),1,0)))","v":"Day 156"},{"$f":"IF(WEEKDAY(CalendarDay)=WeekStartValue,CONCATENATE(\"Week \",WEEKNUM(CalendarDay),\"/Day \",CalendarDay-DATE(YEAR(CalendarDay),1,0)),CONCATENATE(\"Day \",CalendarDay-DATE(YEAR(CalendarDay),1,0)))","v":"Day 157"},{"$f":"IF(WEEKDAY(CalendarDay)=WeekStartValue,CONCATENATE(\"Week \",WEEKNUM(CalendarDay),\"/Day \",CalendarDay-DATE(YEAR(CalendarDay),1,0)),CONCATENATE(\"Day \",CalendarDay-DATE(YEAR(CalendarDay),1,0)))","v":"Day 158"},{"$f":"IF(WEEKDAY(CalendarDay)=WeekStartValue,CONCATENATE(\"Week \",WEEKNUM(CalendarDay),\"/Day \",CalendarDay-DATE(YEAR(CalendarDay),1,0)),CONCATENATE(\"Day \",CalendarDay-DATE(YEAR(CalendarDay),1,0)))","v":"Day 159"}]
[]
[null,null,{"$f":"DaysAndWeeks+DATE(CalendarYear,6,1)-WEEKDAY(DATE(CalendarYear,6,1),(WeekStart=\"MON\")+1)+15","v":"2013-06-09"},"2013-06-10","2013-06-11","2013-06-12","2013-06-13","2013-06-14","2013-06-15"]
[null,null,{"$f":"IF(WEEKDAY(CalendarDay)=WeekStartValue,CONCATENATE(\"Week \",WEEKNUM(CalendarDay),\"/Day \",CalendarDay-DATE(YEAR(CalendarDay),1,0)),CONCATENATE(\"Day \",CalendarDay-DATE(YEAR(CalendarDay),1,0)))","v":"Week 24/Day 160"},{"$f":"IF(WEEKDAY(CalendarDay)=WeekStartValue,CONCATENATE(\"Week \",WEEKNUM(CalendarDay),\"/Day \",CalendarDay-DATE(YEAR(CalendarDay),1,0)),CONCATENATE(\"Day \",CalendarDay-DATE(YEAR(CalendarDay),1,0)))","v":"Day 161"},{"$f":"IF(WEEKDAY(CalendarDay)=WeekStartValue,CONCATENATE(\"Week \",WEEKNUM(CalendarDay),\"/Day \",CalendarDay-DATE(YEAR(CalendarDay),1,0)),CONCATENATE(\"Day \",CalendarDay-DATE(YEAR(CalendarDay),1,0)))","v":"Day 162"},{"$f":"IF(WEEKDAY(CalendarDay)=WeekStartValue,CONCATENATE(\"Week \",WEEKNUM(CalendarDay),\"/Day \",CalendarDay-DATE(YEAR(CalendarDay),1,0)),CONCATENATE(\"Day \",CalendarDay-DATE(YEAR(CalendarDay),1,0)))","v":"Day 163"},{"$f":"IF(WEEKDAY(CalendarDay)=WeekStartValue,CONCATENATE(\"Week \",WEEKNUM(CalendarDay),\"/Day \",CalendarDay-DATE(YEAR(CalendarDay),1,0)),CONCATENATE(\"Day \",CalendarDay-DATE(YEAR(CalendarDay),1,0)))","v":"Day 164"},{"$f":"IF(WEEKDAY(CalendarDay)=WeekStartValue,CONCATENATE(\"Week \",WEEKNUM(CalendarDay),\"/Day \",CalendarDay-DATE(YEAR(CalendarDay),1,0)),CONCATENATE(\"Day \",CalendarDay-DATE(YEAR(CalendarDay),1,0)))","v":"Day 165"},{"$f":"IF(WEEKDAY(CalendarDay)=WeekStartValue,CONCATENATE(\"Week \",WEEKNUM(CalendarDay),\"/Day \",CalendarDay-DATE(YEAR(CalendarDay),1,0)),CONCATENATE(\"Day \",CalendarDay-DATE(YEAR(CalendarDay),1,0)))","v":"Day 166"}]
[]
[null,null,{"$f":"DaysAndWeeks+DATE(CalendarYear,6,1)-WEEKDAY(DATE(CalendarYear,6,1),(WeekStart=\"MON\")+1)+22","v":"2013-06-16"},"2013-06-17","2013-06-18","2013-06-19","2013-06-20","2013-06-21","2013-06-22"]
[null,null,{"$f":"IF(WEEKDAY(CalendarDay)=WeekStartValue,CONCATENATE(\"Week \",WEEKNUM(CalendarDay),\"/Day \",CalendarDay-DATE(YEAR(CalendarDay),1,0)),CONCATENATE(\"Day \",CalendarDay-DATE(YEAR(CalendarDay),1,0)))","v":"Week 25/Day 167"},{"$f":"IF(WEEKDAY(CalendarDay)=WeekStartValue,CONCATENATE(\"Week \",WEEKNUM(CalendarDay),\"/Day \",CalendarDay-DATE(YEAR(CalendarDay),1,0)),CONCATENATE(\"Day \",CalendarDay-DATE(YEAR(CalendarDay),1,0)))","v":"Day 168"},{"$f":"IF(WEEKDAY(CalendarDay)=WeekStartValue,CONCATENATE(\"Week \",WEEKNUM(CalendarDay),\"/Day \",CalendarDay-DATE(YEAR(CalendarDay),1,0)),CONCATENATE(\"Day \",CalendarDay-DATE(YEAR(CalendarDay),1,0)))","v":"Day 169"},{"$f":"IF(WEEKDAY(CalendarDay)=WeekStartValue,CONCATENATE(\"Week \",WEEKNUM(CalendarDay),\"/Day \",CalendarDay-DATE(YEAR(CalendarDay),1,0)),CONCATENATE(\"Day \",CalendarDay-DATE(YEAR(CalendarDay),1,0)))","v":"Day 170"},{"$f":"IF(WEEKDAY(CalendarDay)=WeekStartValue,CONCATENATE(\"Week \",WEEKNUM(CalendarDay),\"/Day \",CalendarDay-DATE(YEAR(CalendarDay),1,0)),CONCATENATE(\"Day \",CalendarDay-DATE(YEAR(CalendarDay),1,0)))","v":"Day 171"},{"$f":"IF(WEEKDAY(CalendarDay)=WeekStartValue,CONCATENATE(\"Week \",WEEKNUM(CalendarDay),\"/Day \",CalendarDay-DATE(YEAR(CalendarDay),1,0)),CONCATENATE(\"Day \",CalendarDay-DATE(YEAR(CalendarDay),1,0)))","v":"Day 172"},{"$f":"IF(WEEKDAY(CalendarDay)=WeekStartValue,CONCATENATE(\"Week \",WEEKNUM(CalendarDay),\"/Day \",CalendarDay-DATE(YEAR(CalendarDay),1,0)),CONCATENATE(\"Day \",CalendarDay-DATE(YEAR(CalendarDay),1,0)))","v":"Day 173"}]
[]
[null,null,{"$f":"DaysAndWeeks+DATE(CalendarYear,6,1)-WEEKDAY(DATE(CalendarYear,6,1),(WeekStart=\"MON\")+1)+29","v":"2013-06-23"},"2013-06-24","2013-06-25","2013-06-26","2013-06-27","2013-06-28","2013-06-29"]
[null,null,{"$f":"IF(WEEKDAY(CalendarDay)=WeekStartValue,CONCATENATE(\"Week \",WEEKNUM(CalendarDay),\"/Day \",CalendarDay-DATE(YEAR(CalendarDay),1,0)),CONCATENATE(\"Day \",CalendarDay-DATE(YEAR(CalendarDay),1,0)))","v":"Week 26/Day 174"},{"$f":"IF(WEEKDAY(CalendarDay)=WeekStartValue,CONCATENATE(\"Week \",WEEKNUM(CalendarDay),\"/Day \",CalendarDay-DATE(YEAR(CalendarDay),1,0)),CONCATENATE(\"Day \",CalendarDay-DATE(YEAR(CalendarDay),1,0)))","v":"Day 175"},{"$f":"IF(WEEKDAY(CalendarDay)=WeekStartValue,CONCATENATE(\"Week \",WEEKNUM(CalendarDay),\"/Day \",CalendarDay-DATE(YEAR(CalendarDay),1,0)),CONCATENATE(\"Day \",CalendarDay-DATE(YEAR(CalendarDay),1,0)))","v":"Day 176"},{"$f":"IF(WEEKDAY(CalendarDay)=WeekStartValue,CONCATENATE(\"Week \",WEEKNUM(CalendarDay),\"/Day \",CalendarDay-DATE(YEAR(CalendarDay),1,0)),CONCATENATE(\"Day \",CalendarDay-DATE(YEAR(CalendarDay),1,0)))","v":"Day 177"},{"$f":"IF(WEEKDAY(CalendarDay)=WeekStartValue,CONCATENATE(\"Week \",WEEKNUM(CalendarDay),\"/Day \",CalendarDay-DATE(YEAR(CalendarDay),1,0)),CONCATENATE(\"Day \",CalendarDay-DATE(YEAR(CalendarDay),1,0)))","v":"Day 178"},{"$f":"IF(WEEKDAY(CalendarDay)=WeekStartValue,CONCATENATE(\"Week \",WEEKNUM(CalendarDay),\"/Day \",CalendarDay-DATE(YEAR(CalendarDay),1,0)),CONCATENATE(\"Day \",CalendarDay-DATE(YEAR(CalendarDay),1,0)))","v":"Day 179"},{"$f":"IF(WEEKDAY(CalendarDay)=WeekStartValue,CONCATENATE(\"Week \",WEEKNUM(CalendarDay),\"/Day \",CalendarDay-DATE(YEAR(CalendarDay),1,0)),CONCATENATE(\"Day \",CalendarDay-DATE(YEAR(CalendarDay),1,0)))","v":"Day 180"}]
[{"$nulls":4},"NOTES"]
[]
[null,null,{"$f":"DaysAndWeeks+DATE(CalendarYear,6,1)-WEEKDAY(DATE(CalendarYear,6,1),(WeekStart=\"MON\")+1)+36","v":"2013-06-30"},"2013-07-01"]
[null,null,{"$f":"IF(WEEKDAY(CalendarDay)=WeekStartValue,CONCATENATE(\"Week \",WEEKNUM(CalendarDay),\"/Day \",CalendarDay-DATE(YEAR(CalendarDay),1,0)),CONCATENATE(\"Day \",CalendarDay-DATE(YEAR(CalendarDay),1,0)))","v":"Week 27/Day 181"},{"$f":"IF(WEEKDAY(CalendarDay)=WeekStartValue,CONCATENATE(\"Week \",WEEKNUM(CalendarDay),\"/Day \",CalendarDay-DATE(YEAR(CalendarDay),1,0)),CONCATENATE(\"Day \",CalendarDay-DATE(YEAR(CalendarDay),1,0)))","v":"Day 182"}]

{"sheet":"JUL","index":6,"n_rows":20,"n_cols":10,"rows_kept":20,"merged":[[17,4,19,8]]}
[null,null,"SUN",{"$f":"UPPER(TEXT(D3,\"aaa\"))","v":"MON"},"TUE","WED","THU","FRI","SAT"," "]
[null,{"$f":"CalendarYear","v":2013},{"$nulls":7}," "]
[null,null,{"$f":"DaysAndWeeks+DATE(CalendarYear,7,1)-WEEKDAY(DATE(CalendarYear,7,1),(WeekStart=\"MON\")+1)+1","v":"2013-06-30"},"2013-07-01","2013-07-02","2013-07-03","2013-07-04","2013-07-05","2013-07-06"]
[null,null,{"$f":"IF(DAY(CalendarDay)=1,CONCATENATE(\"Week/\",WEEKNUM(CalendarDay),\" Day \",CalendarDay-DATE(YEAR(CalendarDay),1,0)),CONCATENATE(\"Day \",CalendarDay-DATE(YEAR(CalendarDay),1,0)))","v":"Day 181"},"Week/27 Day 182","Day 183","Day 184","Day 185","Day 186","Day 187"]
[]
[null,null,{"$f":"DaysAndWeeks+DATE(CalendarYear,7,1)-WEEKDAY(DATE(CalendarYear,7,1),(WeekStart=\"MON\")+1)+8","v":"2013-07-07"},"2013-07-08","2013-07-09","2013-07-10","2013-07-11","2013-07-12","2013-07-13"]
[null,null,{"$f":"IF(WEEKDAY(CalendarDay)=WeekStartValue,CONCATENATE(\"Week \",WEEKNUM(CalendarDay),\"/Day \",CalendarDay-DATE(YEAR(CalendarDay),1,0)),CONCATENATE(\"Day \",CalendarDay-DATE(YEAR(CalendarDay),1,0)))","v":"Week 28/Day 188"},{"$f":"IF(WEEKDAY(CalendarDay)=WeekStartValue,CONCATENATE(\"Week \",WEEKNUM(CalendarDay),\"/Day \",CalendarDay-DATE(YEAR(CalendarDay),1,0)),CONCATENATE(\"Day \",CalendarDay-DATE(YEAR(CalendarDay),1,0)))","v":"Day 189"},{"$f":"IF(WEEKDAY(CalendarDay)=WeekStartValue,CONCATENATE(\"Week \",WEEKNUM(CalendarDay),\"/Day \",CalendarDay-DATE(YEAR(CalendarDay),1,0)),CONCATENATE(\"Day \",CalendarDay-DATE(YEAR(CalendarDay),1,0)))","v":"Day 190"},{"$f":"IF(WEEKDAY(CalendarDay)=WeekStartValue,CONCATENATE(\"Week \",WEEKNUM(CalendarDay),\"/Day \",CalendarDay-DATE(YEAR(CalendarDay),1,0)),CONCATENATE(\"Day \",CalendarDay-DATE(YEAR(CalendarDay),1,0)))","v":"Day 191"},{"$f":"IF(WEEKDAY(CalendarDay)=WeekStartValue,CONCATENATE(\"Week \",WEEKNUM(CalendarDay),\"/Day \",CalendarDay-DATE(YEAR(CalendarDay),1,0)),CONCATENATE(\"Day \",CalendarDay-DATE(YEAR(CalendarDay),1,0)))","v":"Day 192"},{"$f":"IF(WEEKDAY(CalendarDay)=WeekStartValue,CONCATENATE(\"Week \",WEEKNUM(CalendarDay),\"/Day \",CalendarDay-DATE(YEAR(CalendarDay),1,0)),CONCATENATE(\"Day \",CalendarDay-DATE(YEAR(CalendarDay),1,0)))","v":"Day 193"},{"$f":"IF(WEEKDAY(CalendarDay)=WeekStartValue,CONCATENATE(\"Week \",WEEKNUM(CalendarDay),\"/Day \",CalendarDay-DATE(YEAR(CalendarDay),1,0)),CONCATENATE(\"Day \",CalendarDay-DATE(YEAR(CalendarDay),1,0)))","v":"Day 194"}]
[]
[null,null,{"$f":"DaysAndWeeks+DATE(CalendarYear,7,1)-WEEKDAY(DATE(CalendarYear,7,1),(WeekStart=\"MON\")+1)+15","v":"2013-07-14"},"2013-07-15","2013-07-16","2013-07-17","2013-07-18","2013-07-19","2013-07-20"]
[null,null,{"$f":"IF(WEEKDAY(CalendarDay)=WeekStartValue,CONCATENATE(\"Week \",WEEKNUM(CalendarDay),\"/Day \",CalendarDay-DATE(YEAR(CalendarDay),1,0)),CONCATENATE(\"Day \",CalendarDay-DATE(YEAR(CalendarDay),1,0)))","v":"Week 29/Day 195"},{"$f":"IF(WEEKDAY(CalendarDay)=WeekStartValue,CONCATENATE(\"Week \",WEEKNUM(CalendarDay),\"/Day \",CalendarDay-DATE(YEAR(CalendarDay),1,0)),CONCATENATE(\"Day \",CalendarDay-DATE(YEAR(CalendarDay),1,0)))","v":"Day 196"},{"$f":"IF(WEEKDAY(CalendarDay)=WeekStartValue,CONCATENATE(\"Week \",WEEKNUM(CalendarDay),\"/Day \",CalendarDay-DATE(YEAR(CalendarDay),1,0)),CONCATENATE(\"Day \",CalendarDay-DATE(YEAR(CalendarDay),1,0)))","v":"Day 197"},{"$f":"IF(WEEKDAY(CalendarDay)=WeekStartValue,CONCATENATE(\"Week \",WEEKNUM(CalendarDay),\"/Day \",CalendarDay-DATE(YEAR(CalendarDay),1,0)),CONCATENATE(\"Day \",CalendarDay-DATE(YEAR(CalendarDay),1,0)))","v":"Day 198"},{"$f":"IF(WEEKDAY(CalendarDay)=WeekStartValue,CONCATENATE(\"Week \",WEEKNUM(CalendarDay),\"/Day \",CalendarDay-DATE(YEAR(CalendarDay),1,0)),CONCATENATE(\"Day \",CalendarDay-DATE(YEAR(CalendarDay),1,0)))","v":"Day 199"},{"$f":"IF(WEEKDAY(CalendarDay)=WeekStartValue,CONCATENATE(\"Week \",WEEKNUM(CalendarDay),\"/Day \",CalendarDay-DATE(YEAR(CalendarDay),1,0)),CONCATENATE(\"Day \",CalendarDay-DATE(YEAR(CalendarDay),1,0)))","v":"Day 200"},{"$f":"IF(WEEKDAY(CalendarDay)=WeekStartValue,CONCATENATE(\"Week \",WEEKNUM(CalendarDay),\"/Day \",CalendarDay-DATE(YEAR(CalendarDay),1,0)),CONCATENATE(\"Day \",CalendarDay-DATE(YEAR(CalendarDay),1,0)))","v":"Day 201"}]
[]
[null,null,{"$f":"DaysAndWeeks+DATE(CalendarYear,7,1)-WEEKDAY(DATE(CalendarYear,7,1),(WeekStart=\"MON\")+1)+22","v":"2013-07-21"},"2013-07-22","2013-07-23","2013-07-24","2013-07-25","2013-07-26","2013-07-27"]
[null,null,{"$f":"IF(WEEKDAY(CalendarDay)=WeekStartValue,CONCATENATE(\"Week \",WEEKNUM(CalendarDay),\"/Day \",CalendarDay-DATE(YEAR(CalendarDay),1,0)),CONCATENATE(\"Day \",CalendarDay-DATE(YEAR(CalendarDay),1,0)))","v":"Week 30/Day 202"},{"$f":"IF(WEEKDAY(CalendarDay)=WeekStartValue,CONCATENATE(\"Week \",WEEKNUM(CalendarDay),\"/Day \",CalendarDay-DATE(YEAR(CalendarDay),1,0)),CONCATENATE(\"Day \",CalendarDay-DATE(YEAR(CalendarDay),1,0)))","v":"Day 203"},{"$f":"IF(WEEKDAY(CalendarDay)=WeekStartValue,CONCATENATE(\"Week \",WEEKNUM(CalendarDay),\"/Day \",CalendarDay-DATE(YEAR(CalendarDay),1,0)),CONCATENATE(\"Day \",CalendarDay-DATE(YEAR(CalendarDay),1,0)))","v":"Day 204"},{"$f":"IF(WEEKDAY(CalendarDay)=WeekStartValue,CONCATENATE(\"Week \",WEEKNUM(CalendarDay),\"/Day \",CalendarDay-DATE(YEAR(CalendarDay),1,0)),CONCATENATE(\"Day \",CalendarDay-DATE(YEAR(CalendarDay),1,0)))","v":"Day 205"},{"$f":"IF(WEEKDAY(CalendarDay)=WeekStartValue,CONCATENATE(\"Week \",WEEKNUM(CalendarDay),\"/Day \",CalendarDay-DATE(YEAR(CalendarDay),1,0)),CONCATENATE(\"Day \",CalendarDay-DATE(YEAR(CalendarDay),1,0)))","v":"Day 206"},{"$f":"IF(WEEKDAY(CalendarDay)=WeekStartValue,CONCATENATE(\"Week \",WEEKNUM(CalendarDay),\"/Day \",CalendarDay-DATE(YEAR(CalendarDay),1,0)),CONCATENATE(\"Day \",CalendarDay-DATE(YEAR(CalendarDay),1,0)))","v":"Day 207"},{"$f":"IF(WEEKDAY(CalendarDay)=WeekStartValue,CONCATENATE(\"Week \",WEEKNUM(CalendarDay),\"/Day \",CalendarDay-DATE(YEAR(CalendarDay),1,0)),CONCATENATE(\"Day \",CalendarDay-DATE(YEAR(CalendarDay),1,0)))","v":"Day 208"}]
[]
[null,null,{"$f":"DaysAndWeeks+DATE(CalendarYear,7,1)-WEEKDAY(DATE(CalendarYear,7,1),(WeekStart=\"MON\")+1)+29","v":"2013-07-28"},"2013-07-29","2013-07-30","2013-07-31","2013-08-01","2013-08-02","2013-08-03"]
[null,null,{"$f":"IF(WEEKDAY(CalendarDay)=WeekStartValue,CONCATENATE(\"Week \",WEEKNUM(CalendarDay),\"/Day \",CalendarDay-DATE(YEAR(CalendarDay),1,0)),CONCATENATE(\"Day \",CalendarDay-DATE(YEAR(CalendarDay),1,0)))","v":"Week 31/Day 209"},{"$f":"IF(WEEKDAY(CalendarDay)=WeekStartValue,CONCATENATE(\"Week \",WEEKNUM(CalendarDay),\"/Day \",CalendarDay-DATE(YEAR(CalendarDay),1,0)),CONCATENATE(\"Day \",CalendarDay-DATE(YEAR(CalendarDay),1,0)))","v":"Day 210"},{"$f":"IF(WEEKDAY(CalendarDay)=WeekStartValue,CONCATENATE(\"Week \",WEEKNUM(CalendarDay),\"/Day \",CalendarDay-DATE(YEAR(CalendarDay),1,0)),CONCATENATE(\"Day \",CalendarDay-DATE(YEAR(CalendarDay),1,0)))","v":"Day 211"},{"$f":"IF(WEEKDAY(CalendarDay)=WeekStartValue,CONCATENATE(\"Week \",WEEKNUM(CalendarDay),\"/Day \",CalendarDay-DATE(YEAR(CalendarDay),1,0)),CONCATENATE(\"Day \",CalendarDay-DATE(YEAR(CalendarDay),1,0)))","v":"Day 212"},{"$f":"IF(WEEKDAY(CalendarDay)=WeekStartValue,CONCATENATE(\"Week \",WEEKNUM(CalendarDay),\"/Day \",CalendarDay-DATE(YEAR(CalendarDay),1,0)),CONCATENATE(\"Day \",CalendarDay-DATE(YEAR(CalendarDay),1,0)))","v":"Day 213"},{"$f":"IF(WEEKDAY(CalendarDay)=WeekStartValue,CONCATENATE(\"Week \",WEEKNUM(CalendarDay),\"/Day \",CalendarDay-DATE(YEAR(CalendarDay),1,0)),CONCATENATE(\"Day \",CalendarDay-DATE(YEAR(CalendarDay),1,0)))","v":"Day 214"},{"$f":"IF(WEEKDAY(CalendarDay)=WeekStartValue,CONCATENATE(\"Week \",WEEKNUM(CalendarDay),\"/Day \",CalendarDay-DATE(YEAR(CalendarDay),1,0)),CONCATENATE(\"Day \",CalendarDay-DATE(YEAR(CalendarDay),1,0)))","v":"Day 215"}]
[{"$nulls":4},"NOTES"]
[]
[null,null,{"$f":"DaysAndWeeks+DATE(CalendarYear,7,1)-WEEKDAY(DATE(CalendarYear,7,1),(WeekStart=\"MON\")+1)+36","v":"2013-08-04"},"2013-08-05"]
[null,null,{"$f":"IF(WEEKDAY(CalendarDay)=WeekStartValue,CONCATENATE(\"Week \",WEEKNUM(CalendarDay),\"/Day \",CalendarDay-DATE(YEAR(CalendarDay),1,0)),CONCATENATE(\"Day \",CalendarDay-DATE(YEAR(CalendarDay),1,0)))","v":"Week 32/Day 216"},{"$f":"IF(WEEKDAY(CalendarDay)=WeekStartValue,CONCATENATE(\"Week \",WEEKNUM(CalendarDay),\"/Day \",CalendarDay-DATE(YEAR(CalendarDay),1,0)),CONCATENATE(\"Day \",CalendarDay-DATE(YEAR(CalendarDay),1,0)))","v":"Day 217"}]

{"sheet":"AUG","index":7,"n_rows":20,"n_cols":10,"rows_kept":20,"merged":[[17,4,19,8]]}
[null,null,"SUN",{"$f":"UPPER(TEXT(D3,\"aaa\"))","v":"MON"},"TUE","WED","THU","FRI","SAT"," "]
[null,{"$f":"CalendarYear","v":2013},{"$nulls":7}," "]
[null,null,{"$f":"DaysAndWeeks+DATE(CalendarYear,8,1)-WEEKDAY(DATE(CalendarYear,8,1),(WeekStart=\"MON\")+1)+1","v":"2013-07-28"},"2013-07-29","2013-07-30","2013-07-31","2013-08-01","2013-08-02","2013-08-03"]
[null,null,{"$f":"IF(DAY(CalendarDay)=1,CONCATENATE(\"Week/\",WEEKNUM(CalendarDay),\" Day \",CalendarDay-DATE(YEAR(CalendarDay),1,0)),CONCATENATE(\"Day \",CalendarDay-DATE(YEAR(CalendarDay),1,0)))","v":"Day 209"},"Day 210","Day 211","Day 212","Week/31 Day 213","Day 214","Day 215"]
[]
[null,null,{"$f":"DaysAndWeeks+DATE(CalendarYear,8,1)-WEEKDAY(DATE(CalendarYear,8,1),(WeekStart=\"MON\")+1)+8","v":"2013-08-04"},"2013-08-05","2013-08-06","2013-08-07","2013-08-08","2013-08-09","2013-08-10"]
[null,null,{"$f":"IF(WEEKDAY(CalendarDay)=WeekStartValue,CONCATENATE(\"Week \",WEEKNUM(CalendarDay),\"/Day \",CalendarDay-DATE(YEAR(CalendarDay),1,0)),CONCATENATE(\"Day \",CalendarDay-DATE(YEAR(CalendarDay),1,0)))","v":"Week 32/Day 216"},{"$f":"IF(WEEKDAY(CalendarDay)=WeekStartValue,CONCATENATE(\"Week \",WEEKNUM(CalendarDay),\"/Day \",CalendarDay-DATE(YEAR(CalendarDay),1,0)),CONCATENATE(\"Day \",CalendarDay-DATE(YEAR(CalendarDay),1,0)))","v":"Day 217"},{"$f":"IF(WEEKDAY(CalendarDay)=WeekStartValue,CONCATENATE(\"Week \",WEEKNUM(CalendarDay),\"/Day \",CalendarDay-DATE(YEAR(CalendarDay),1,0)),CONCATENATE(\"Day \",CalendarDay-DATE(YEAR(CalendarDay),1,0)))","v":"Day 218"},{"$f":"IF(WEEKDAY(CalendarDay)=WeekStartValue,CONCATENATE(\"Week \",WEEKNUM(CalendarDay),\"/Day \",CalendarDay-DATE(YEAR(CalendarDay),1,0)),CONCATENATE(\"Day \",CalendarDay-DATE(YEAR(CalendarDay),1,0)))","v":"Day 219"},{"$f":"IF(WEEKDAY(CalendarDay)=WeekStartValue,CONCATENATE(\"Week \",WEEKNUM(CalendarDay),\"/Day \",CalendarDay-DATE(YEAR(CalendarDay),1,0)),CONCATENATE(\"Day \",CalendarDay-DATE(YEAR(CalendarDay),1,0)))","v":"Day 220"},{"$f":"IF(WEEKDAY(CalendarDay)=WeekStartValue,CONCATENATE(\"Week \",WEEKNUM(CalendarDay),\"/Day \",CalendarDay-DATE(YEAR(CalendarDay),1,0)),CONCATENATE(\"Day \",CalendarDay-DATE(YEAR(CalendarDay),1,0)))","v":"Day 221"},{"$f":"IF(WEEKDAY(CalendarDay)=WeekStartValue,CONCATENATE(\"Week \",WEEKNUM(CalendarDay),\"/Day \",CalendarDay-DATE(YEAR(CalendarDay),1,0)),CONCATENATE(\"Day \",CalendarDay-DATE(YEAR(CalendarDay),1,0)))","v":"Day 222"}]
[]
[null,null,{"$f":"DaysAndWeeks+DATE(CalendarYear,8,1)-WEEKDAY(DATE(CalendarYear,8,1),(WeekStart=\"MON\")+1)+15","v":"2013-08-11"},"2013-08-12","2013-08-13","2013-08-14","2013-08-15","2013-08-16","2013-08-17"]
[null,null,{"$f":"IF(WEEKDAY(CalendarDay)=WeekStartValue,CONCATENATE(\"Week \",WEEKNUM(CalendarDay),\"/Day \",CalendarDay-DATE(YEAR(CalendarDay),1,0)),CONCATENATE(\"Day \",CalendarDay-DATE(YEAR(CalendarDay),1,0)))","v":"Week 33/Day 223"},{"$f":"IF(WEEKDAY(CalendarDay)=WeekStartValue,CONCATENATE(\"Week \",WEEKNUM(CalendarDay),\"/Day \",CalendarDay-DATE(YEAR(CalendarDay),1,0)),CONCATENATE(\"Day \",CalendarDay-DATE(YEAR(CalendarDay),1,0)))","v":"Day 224"},{"$f":"IF(WEEKDAY(CalendarDay)=WeekStartValue,CONCATENATE(\"Week \",WEEKNUM(CalendarDay),\"/Day \",CalendarDay-DATE(YEAR(CalendarDay),1,0)),CONCATENATE(\"Day \",CalendarDay-DATE(YEAR(CalendarDay),1,0)))","v":"Day 225"},{"$f":"IF(WEEKDAY(CalendarDay)=WeekStartValue,CONCATENATE(\"Week \",WEEKNUM(CalendarDay),\"/Day \",CalendarDay-DATE(YEAR(CalendarDay),1,0)),CONCATENATE(\"Day \",CalendarDay-DATE(YEAR(CalendarDay),1,0)))","v":"Day 226"},{"$f":"IF(WEEKDAY(CalendarDay)=WeekStartValue,CONCATENATE(\"Week \",WEEKNUM(CalendarDay),\"/Day \",CalendarDay-DATE(YEAR(CalendarDay),1,0)),CONCATENATE(\"Day \",CalendarDay-DATE(YEAR(CalendarDay),1,0)))","v":"Day 227"},{"$f":"IF(WEEKDAY(CalendarDay)=WeekStartValue,CONCATENATE(\"Week \",WEEKNUM(CalendarDay),\"/Day \",CalendarDay-DATE(YEAR(CalendarDay),1,0)),CONCATENATE(\"Day \",CalendarDay-DATE(YEAR(CalendarDay),1,0)))","v":"Day 228"},{"$f":"IF(WEEKDAY(CalendarDay)=WeekStartValue,CONCATENATE(\"Week \",WEEKNUM(CalendarDay),\"/Day \",CalendarDay-DATE(YEAR(CalendarDay),1,0)),CONCATENATE(\"Day \",CalendarDay-DATE(YEAR(CalendarDay),1,0)))","v":"Day 229"}]
[]
[null,null,{"$f":"DaysAndWeeks+DATE(CalendarYear,8,1)-WEEKDAY(DATE(CalendarYear,8,1),(WeekStart=\"MON\")+1)+22","v":"2013-08-18"},"2013-08-19","2013-08-20","2013-08-21","2013-08-22","2013-08-23","2013-08-24"]
[null,null,{"$f":"IF(WEEKDAY(CalendarDay)=WeekStartValue,CONCATENATE(\"Week \",WEEKNUM(CalendarDay),\"/Day \",CalendarDay-DATE(YEAR(CalendarDay),1,0)),CONCATENATE(\"Day \",CalendarDay-DATE(YEAR(CalendarDay),1,0)))","v":"Week 34/Day 230"},{"$f":"IF(WEEKDAY(CalendarDay)=WeekStartValue,CONCATENATE(\"Week \",WEEKNUM(CalendarDay),\"/Day \",CalendarDay-DATE(YEAR(CalendarDay),1,0)),CONCATENATE(\"Day \",CalendarDay-DATE(YEAR(CalendarDay),1,0)))","v":"Day 231"},{"$f":"IF(WEEKDAY(CalendarDay)=WeekStartValue,CONCATENATE(\"Week \",WEEKNUM(CalendarDay),\"/Day \",CalendarDay-DATE(YEAR(CalendarDay),1,0)),CONCATENATE(\"Day \",CalendarDay-DATE(YEAR(CalendarDay),1,0)))","v":"Day 232"},{"$f":"IF(WEEKDAY(CalendarDay)=WeekStartValue,CONCATENATE(\"Week \",WEEKNUM(CalendarDay),\"/Day \",CalendarDay-DATE(YEAR(CalendarDay),1,0)),CONCATENATE(\"Day \",CalendarDay-DATE(YEAR(CalendarDay),1,0)))","v":"Day 233"},{"$f":"IF(WEEKDAY(CalendarDay)=WeekStartValue,CONCATENATE(\"Week \",WEEKNUM(CalendarDay),\"/Day \",CalendarDay-DATE(YEAR(CalendarDay),1,0)),CONCATENATE(\"Day \",CalendarDay-DATE(YEAR(CalendarDay),1,0)))","v":"Day 234"},{"$f":"IF(WEEKDAY(CalendarDay)=WeekStartValue,CONCATENATE(\"Week \",WEEKNUM(CalendarDay),\"/Day \",CalendarDay-DATE(YEAR(CalendarDay),1,0)),CONCATENATE(\"Day \",CalendarDay-DATE(YEAR(CalendarDay),1,0)))","v":"Day 235"},{"$f":"IF(WEEKDAY(CalendarDay)=WeekStartValue,CONCATENATE(\"Week \",WEEKNUM(CalendarDay),\"/Day \",CalendarDay-DATE(YEAR(CalendarDay),1,0)),CONCATENATE(\"Day \",CalendarDay-DATE(YEAR(CalendarDay),1,0)))","v":"Day 236"}]
[]
[null,null,{"$f":"DaysAndWeeks+DATE(CalendarYear,8,1)-WEEKDAY(DATE(CalendarYear,8,1),(WeekStart=\"MON\")+1)+29","v":"2013-08-25"},"2013-08-26","2013-08-27","2013-08-28","2013-08-29","2013-08-30","2013-08-31"]
[null,null,{"$f":"IF(WEEKDAY(CalendarDay)=WeekStartValue,CONCATENATE(\"Week \",WEEKNUM(CalendarDay),\"/Day \",CalendarDay-DATE(YEAR(CalendarDay),1,0)),CONCATENATE(\"Day \",CalendarDay-DATE(YEAR(CalendarDay),1,0)))","v":"Week 35/Day 237"},{"$f":"IF(WEEKDAY(CalendarDay)=WeekStartValue,CONCATENATE(\"Week \",WEEKNUM(CalendarDay),\"/Day \",CalendarDay-DATE(YEAR(CalendarDay),1,0)),CONCATENATE(\"Day \",CalendarDay-DATE(YEAR(CalendarDay),1,0)))","v":"Day 238"},{"$f":"IF(WEEKDAY(CalendarDay)=WeekStartValue,CONCATENATE(\"Week \",WEEKNUM(CalendarDay),\"/Day \",CalendarDay-DATE(YEAR(CalendarDay),1,0)),CONCATENATE(\"Day \",CalendarDay-DATE(YEAR(CalendarDay),1,0)))","v":"Day 239"},{"$f":"IF(WEEKDAY(CalendarDay)=WeekStartValue,CONCATENATE(\"Week \",WEEKNUM(CalendarDay),\"/Day \",CalendarDay-DATE(YEAR(CalendarDay),1,0)),CONCATENATE(\"Day \",CalendarDay-DATE(YEAR(CalendarDay),1,0)))","v":"Day 240"},{"$f":"IF(WEEKDAY(CalendarDay)=WeekStartValue,CONCATENATE(\"Week \",WEEKNUM(CalendarDay),\"/Day \",CalendarDay-DATE(YEAR(CalendarDay),1,0)),CONCATENATE(\"Day \",CalendarDay-DATE(YEAR(CalendarDay),1,0)))","v":"Day 241"},{"$f":"IF(WEEKDAY(CalendarDay)=WeekStartValue,CONCATENATE(\"Week \",WEEKNUM(CalendarDay),\"/Day \",CalendarDay-DATE(YEAR(CalendarDay),1,0)),CONCATENATE(\"Day \",CalendarDay-DATE(YEAR(CalendarDay),1,0)))","v":"Day 242"},{"$f":"IF(WEEKDAY(CalendarDay)=WeekStartValue,CONCATENATE(\"Week \",WEEKNUM(CalendarDay),\"/Day \",CalendarDay-DATE(YEAR(CalendarDay),1,0)),CONCATENATE(\"Day \",CalendarDay-DATE(YEAR(CalendarDay),1,0)))","v":"Day 243"}]
[{"$nulls":4},"NOTES"]
[]
[null,null,{"$f":"DaysAndWeeks+DATE(CalendarYear,8,1)-WEEKDAY(DATE(CalendarYear,8,1),(WeekStart=\"MON\")+1)+36","v":"2013-09-01"},"2013-09-02"]
[null,null,{"$f":"IF(WEEKDAY(CalendarDay)=WeekStartValue,CONCATENATE(\"Week \",WEEKNUM(CalendarDay),\"/Day \",CalendarDay-DATE(YEAR(CalendarDay),1,0)),CONCATENATE(\"Day \",CalendarDay-DATE(YEAR(CalendarDay),1,0)))","v":"Week 36/Day 244"},{"$f":"IF(WEEKDAY(CalendarDay)=WeekStartValue,CONCATENATE(\"Week \",WEEKNUM(CalendarDay),\"/Day \",CalendarDay-DATE(YEAR(CalendarDay),1,0)),CONCATENATE(\"Day \",CalendarDay-DATE(YEAR(CalendarDay),1,0)))","v":"Day 245"}]

{"sheet":"SEP","index":8,"n_rows":20,"n_cols":10,"rows_kept":20,"merged":[[17,4,19,8]]}
[null,null,"SUN",{"$f":"UPPER(TEXT(D3,\"aaa\"))","v":"MON"},"TUE","WED","THU","FRI","SAT"," "]
[null,{"$f":"CalendarYear","v":2013},{"$nulls":7}," "]
[null,null,{"$f":"DaysAndWeeks+DATE(CalendarYear,9,1)-WEEKDAY(DATE(CalendarYear,9,1),(WeekStart=\"MON\")+1)+1","v":"2013-09-01"},"2013-09-02","2013-09-03","2013-09-04","2013-09-05","2013-09-06","2013-09-07"]
[null,null,{"$f":"IF(DAY(CalendarDay)=1,CONCATENATE(\"Week/\",WEEKNUM(CalendarDay),\" Day \",CalendarDay-DATE(YEAR(CalendarDay),1,0)),CONCATENATE(\"Day \",CalendarDay-DATE(YEAR(CalendarDay),1,0)))","v":"Week/36 Day 244"},"Day 245","Day 246","Day 247","Day 248","Day 249","Day 250"]
[]
[null,null,{"$f":"DaysAndWeeks+DATE(CalendarYear,9,1)-WEEKDAY(DATE(CalendarYear,9,1),(WeekStart=\"MON\")+1)+8","v":"2013-09-08"},"2013-09-09","2013-09-10","2013-09-11","2013-09-12","2013-09-13","2013-09-14"]
[null,null,{"$f":"IF(WEEKDAY(CalendarDay)=WeekStartValue,CONCATENATE(\"Week \",WEEKNUM(CalendarDay),\"/Day \",CalendarDay-DATE(YEAR(CalendarDay),1,0)),CONCATENATE(\"Day \",CalendarDay-DATE(YEAR(CalendarDay),1,0)))","v":"Week 37/Day 251"},{"$f":"IF(WEEKDAY(CalendarDay)=WeekStartValue,CONCATENATE(\"Week \",WEEKNUM(CalendarDay),\"/Day \",CalendarDay-DATE(YEAR(CalendarDay),1,0)),CONCATENATE(\"Day \",CalendarDay-DATE(YEAR(CalendarDay),1,0)))","v":"Day 252"},{"$f":"IF(WEEKDAY(CalendarDay)=WeekStartValue,CONCATENATE(\"Week \",WEEKNUM(CalendarDay),\"/Day \",CalendarDay-DATE(YEAR(CalendarDay),1,0)),CONCATENATE(\"Day \",CalendarDay-DATE(YEAR(CalendarDay),1,0)))","v":"Day 253"},{"$f":"IF(WEEKDAY(CalendarDay)=WeekStartValue,CONCATENATE(\"Week \",WEEKNUM(CalendarDay),\"/Day \",CalendarDay-DATE(YEAR(CalendarDay),1,0)),CONCATENATE(\"Day \",CalendarDay-DATE(YEAR(CalendarDay),1,0)))","v":"Day 254"},{"$f":"IF(WEEKDAY(CalendarDay)=WeekStartValue,CONCATENATE(\"Week \",WEEKNUM(CalendarDay),\"/Day \",CalendarDay-DATE(YEAR(CalendarDay),1,0)),CONCATENATE(\"Day \",CalendarDay-DATE(YEAR(CalendarDay),1,0)))","v":"Day 255"},{"$f":"IF(WEEKDAY(CalendarDay)=WeekStartValue,CONCATENATE(\"Week \",WEEKNUM(CalendarDay),\"/Day \",CalendarDay-DATE(YEAR(CalendarDay),1,0)),CONCATENATE(\"Day \",CalendarDay-DATE(YEAR(CalendarDay),1,0)))","v":"Day 256"},{"$f":"IF(WEEKDAY(CalendarDay)=WeekStartValue,CONCATENATE(\"Week \",WEEKNUM(CalendarDay),\"/Day \",CalendarDay-DATE(YEAR(CalendarDay),1,0)),CONCATENATE(\"Day \",CalendarDay-DATE(YEAR(CalendarDay),1,0)))","v":"Day 257"}]
[]
[null,null,{"$f":"DaysAndWeeks+DATE(CalendarYear,9,1)-WEEKDAY(DATE(CalendarYear,9,1),(WeekStart=\"MON\")+1)+15","v":"2013-09-15"},"2013-09-16","2013-09-17","2013-09-18","2013-09-19","2013-09-20","2013-09-21"]
[null,null,{"$f":"IF(WEEKDAY(CalendarDay)=WeekStartValue,CONCATENATE(\"Week \",WEEKNUM(CalendarDay),\"/Day \",CalendarDay-DATE(YEAR(CalendarDay),1,0)),CONCATENATE(\"Day \",CalendarDay-DATE(YEAR(CalendarDay),1,0)))","v":"Week 38/Day 258"},{"$f":"IF(WEEKDAY(CalendarDay)=WeekStartValue,CONCATENATE(\"Week \",WEEKNUM(CalendarDay),\"/Day \",CalendarDay-DATE(YEAR(CalendarDay),1,0)),CONCATENATE(\"Day \",CalendarDay-DATE(YEAR(CalendarDay),1,0)))","v":"Day 259"},{"$f":"IF(WEEKDAY(CalendarDay)=WeekStartValue,CONCATENATE(\"Week \",WEEKNUM(CalendarDay),\"/Day \",CalendarDay-DATE(YEAR(CalendarDay),1,0)),CONCATENATE(\"Day \",CalendarDay-DATE(YEAR(CalendarDay),1,0)))","v":"Day 260"},{"$f":"IF(WEEKDAY(CalendarDay)=WeekStartValue,CONCATENATE(\"Week \",WEEKNUM(CalendarDay),\"/Day \",CalendarDay-DATE(YEAR(CalendarDay),1,0)),CONCATENATE(\"Day \",CalendarDay-DATE(YEAR(CalendarDay),1,0)))","v":"Day 261"},{"$f":"IF(WEEKDAY(CalendarDay)=WeekStartValue,CONCATENATE(\"Week \",WEEKNUM(CalendarDay),\"/Day \",CalendarDay-DATE(YEAR(CalendarDay),1,0)),CONCATENATE(\"Day \",CalendarDay-DATE(YEAR(CalendarDay),1,0)))","v":"Day 262"},{"$f":"IF(WEEKDAY(CalendarDay)=WeekStartValue,CONCATENATE(\"Week \",WEEKNUM(CalendarDay),\"/Day \",CalendarDay-DATE(YEAR(CalendarDay),1,0)),CONCATENATE(\"Day \",CalendarDay-DATE(YEAR(CalendarDay),1,0)))","v":"Day 263"},{"$f":"IF(WEEKDAY(CalendarDay)=WeekStartValue,CONCATENATE(\"Week \",WEEKNUM(CalendarDay),\"/Day \",CalendarDay-DATE(YEAR(CalendarDay),1,0)),CONCATENATE(\"Day \",CalendarDay-DATE(YEAR(CalendarDay),1,0)))","v":"Day 264"}]
[]
[null,null,{"$f":"DaysAndWeeks+DATE(CalendarYear,9,1)-WEEKDAY(DATE(CalendarYear,9,1),(WeekStart=\"MON\")+1)+22","v":"2013-09-22"},"2013-09-23","2013-09-24","2013-09-25","2013-09-26","2013-09-27","2013-09-28"]
[null,null,{"$f":"IF(WEEKDAY(CalendarDay)=WeekStartValue,CONCATENATE(\"Week \",WEEKNUM(CalendarDay),\"/Day \",CalendarDay-DATE(YEAR(CalendarDay),1,0)),CONCATENATE(\"Day \",CalendarDay-DATE(YEAR(CalendarDay),1,0)))","v":"Week 39/Day 265"},{"$f":"IF(WEEKDAY(CalendarDay)=WeekStartValue,CONCATENATE(\"Week \",WEEKNUM(CalendarDay),\"/Day \",CalendarDay-DATE(YEAR(CalendarDay),1,0)),CONCATENATE(\"Day \",CalendarDay-DATE(YEAR(CalendarDay),1,0)))","v":"Day 266"},{"$f":"IF(WEEKDAY(CalendarDay)=WeekStartValue,CONCATENATE(\"Week \",WEEKNUM(CalendarDay),\"/Day \",CalendarDay-DATE(YEAR(CalendarDay),1,0)),CONCATENATE(\"Day \",CalendarDay-DATE(YEAR(CalendarDay),1,0)))","v":"Day 267"},{"$f":"IF(WEEKDAY(CalendarDay)=WeekStartValue,CONCATENATE(\"Week \",WEEKNUM(CalendarDay),\"/Day \",CalendarDay-DATE(YEAR(CalendarDay),1,0)),CONCATENATE(\"Day \",CalendarDay-DATE(YEAR(CalendarDay),1,0)))","v":"Day 268"},{"$f":"IF(WEEKDAY(CalendarDay)=WeekStartValue,CONCATENATE(\"Week \",WEEKNUM(CalendarDay),\"/Day \",CalendarDay-DATE(YEAR(CalendarDay),1,0)),CONCATENATE(\"Day \",CalendarDay-DATE(YEAR(CalendarDay),1,0)))","v":"Day 269"},{"$f":"IF(WEEKDAY(CalendarDay)=WeekStartValue,CONCATENATE(\"Week \",WEEKNUM(CalendarDay),\"/Day \",CalendarDay-DATE(YEAR(CalendarDay),1,0)),CONCATENATE(\"Day \",CalendarDay-DATE(YEAR(CalendarDay),1,0)))","v":"Day 270"},{"$f":"IF(WEEKDAY(CalendarDay)=WeekStartValue,CONCATENATE(\"Week \",WEEKNUM(CalendarDay),\"/Day \",CalendarDay-DATE(YEAR(CalendarDay),1,0)),CONCATENATE(\"Day \",CalendarDay-DATE(YEAR(CalendarDay),1,0)))","v":"Day 271"}]
[]
[null,null,{"$f":"DaysAndWeeks+DATE(CalendarYear,9,1)-WEEKDAY(DATE(CalendarYear,9,1),(WeekStart=\"MON\")+1)+29","v":"2013-09-29"},"2013-09-30","2013-10-01","2013-10-02","2013-10-03","2013-10-04","2013-10-05"]
[null,null,{"$f":"IF(WEEKDAY(CalendarDay)=WeekStartValue,CONCATENATE(\"Week \",WEEKNUM(CalendarDay),\"/Day \",CalendarDay-DATE(YEAR(CalendarDay),1,0)),CONCATENATE(\"Day \",CalendarDay-DATE(YEAR(CalendarDay),1,0)))","v":"Week 40/Day 272"},{"$f":"IF(WEEKDAY(CalendarDay)=WeekStartValue,CONCATENATE(\"Week \",WEEKNUM(CalendarDay),\"/Day \",CalendarDay-DATE(YEAR(CalendarDay),1,0)),CONCATENATE(\"Day \",CalendarDay-DATE(YEAR(CalendarDay),1,0)))","v":"Day 273"},{"$f":"IF(WEEKDAY(CalendarDay)=WeekStartValue,CONCATENATE(\"Week \",WEEKNUM(CalendarDay),\"/Day \",CalendarDay-DATE(YEAR(CalendarDay),1,0)),CONCATENATE(\"Day \",CalendarDay-DATE(YEAR(CalendarDay),1,0)))","v":"Day 274"},{"$f":"IF(WEEKDAY(CalendarDay)=WeekStartValue,CONCATENATE(\"Week \",WEEKNUM(CalendarDay),\"/Day \",CalendarDay-DATE(YEAR(CalendarDay),1,0)),CONCATENATE(\"Day \",CalendarDay-DATE(YEAR(CalendarDay),1,0)))","v":"Day 275"},{"$f":"IF(WEEKDAY(CalendarDay)=WeekStartValue,CONCATENATE(\"Week \",WEEKNUM(CalendarDay),\"/Day \",CalendarDay-DATE(YEAR(CalendarDay),1,0)),CONCATENATE(\"Day \",CalendarDay-DATE(YEAR(CalendarDay),1,0)))","v":"Day 276"},{"$f":"IF(WEEKDAY(CalendarDay)=WeekStartValue,CONCATENATE(\"Week \",WEEKNUM(CalendarDay),\"/Day \",CalendarDay-DATE(YEAR(CalendarDay),1,0)),CONCATENATE(\"Day \",CalendarDay-DATE(YEAR(CalendarDay),1,0)))","v":"Day 277"},{"$f":"IF(WEEKDAY(CalendarDay)=WeekStartValue,CONCATENATE(\"Week \",WEEKNUM(CalendarDay),\"/Day \",CalendarDay-DATE(YEAR(CalendarDay),1,0)),CONCATENATE(\"Day \",CalendarDay-DATE(YEAR(CalendarDay),1,0)))","v":"Day 278"}]
[{"$nulls":4},"NOTES"]
[]
[null,null,{"$f":"DaysAndWeeks+DATE(CalendarYear,9,1)-WEEKDAY(DATE(CalendarYear,9,1),(WeekStart=\"MON\")+1)+36","v":"2013-10-06"},"2013-10-07"]
[null,null,{"$f":"IF(WEEKDAY(CalendarDay)=WeekStartValue,CONCATENATE(\"Week \",WEEKNUM(CalendarDay),\"/Day \",CalendarDay-DATE(YEAR(CalendarDay),1,0)),CONCATENATE(\"Day \",CalendarDay-DATE(YEAR(CalendarDay),1,0)))","v":"Week 41/Day 279"},{"$f":"IF(WEEKDAY(CalendarDay)=WeekStartValue,CONCATENATE(\"Week \",WEEKNUM(CalendarDay),\"/Day \",CalendarDay-DATE(YEAR(CalendarDay),1,0)),CONCATENATE(\"Day \",CalendarDay-DATE(YEAR(CalendarDay),1,0)))","v":"Day 280"}]

{"sheet":"OCT","index":9,"n_rows":20,"n_cols":10,"rows_kept":20,"merged":[[17,4,19,8]]}
[null,null,"SUN",{"$f":"UPPER(TEXT(D3,\"aaa\"))","v":"MON"},"TUE","WED","THU","FRI","SAT"," "]
[null,{"$f":"CalendarYear","v":2013},{"$nulls":7}," "]
[null,null,{"$f":"DaysAndWeeks+DATE(CalendarYear,10,1)-WEEKDAY(DATE(CalendarYear,10,1),(WeekStart=\"MON\")+1)+1","v":"2013-09-29"},"2013-09-30","2013-10-01","2013-10-02","2013-10-03","2013-10-04","2013-10-05"]
[null,null,{"$f":"IF(DAY(CalendarDay)=1,CONCATENATE(\"Week/\",WEEKNUM(CalendarDay),\" Day \",CalendarDay-DATE(YEAR(CalendarDay),1,0)),CONCATENATE(\"Day \",CalendarDay-DATE(YEAR(CalendarDay),1,0)))","v":"Day 272"},"Day 273","Week/40 Day 274","Day 275","Day 276","Day 277","Day 278"]
[]
[null,null,{"$f":"DaysAndWeeks+DATE(CalendarYear,10,1)-WEEKDAY(DATE(CalendarYear,10,1),(WeekStart=\"MON\")+1)+8","v":"2013-10-06"},"2013-10-07","2013-10-08","2013-10-09","2013-10-10","2013-10-11","2013-10-12"]
[null,null,{"$f":"IF(WEEKDAY(CalendarDay)=WeekStartValue,CONCATENATE(\"Week \",WEEKNUM(CalendarDay),\"/Day \",CalendarDay-DATE(YEAR(CalendarDay),1,0)),CONCATENATE(\"Day \",CalendarDay-DATE(YEAR(CalendarDay),1,0)))","v":"Week 41/Day 279"},{"$f":"IF(WEEKDAY(CalendarDay)=WeekStartValue,CONCATENATE(\"Week \",WEEKNUM(CalendarDay),\"/Day \",CalendarDay-DATE(YEAR(CalendarDay),1,0)),CONCATENATE(\"Day \",CalendarDay-DATE(YEAR(CalendarDay),1,0)))","v":"Day 280"},{"$f":"IF(WEEKDAY(CalendarDay)=WeekStartValue,CONCATENATE(\"Week \",WEEKNUM(CalendarDay),\"/Day \",CalendarDay-DATE(YEAR(CalendarDay),1,0)),CONCATENATE(\"Day \",CalendarDay-DATE(YEAR(CalendarDay),1,0)))","v":"Day 281"},{"$f":"IF(WEEKDAY(CalendarDay)=WeekStartValue,CONCATENATE(\"Week \",WEEKNUM(CalendarDay),\"/Day \",CalendarDay-DATE(YEAR(CalendarDay),1,0)),CONCATENATE(\"Day \",CalendarDay-DATE(YEAR(CalendarDay),1,0)))","v":"Day 282"},{"$f":"IF(WEEKDAY(CalendarDay)=WeekStartValue,CONCATENATE(\"Week \",WEEKNUM(CalendarDay),\"/Day \",CalendarDay-DATE(YEAR(CalendarDay),1,0)),CONCATENATE(\"Day \",CalendarDay-DATE(YEAR(CalendarDay),1,0)))","v":"Day 283"},{"$f":"IF(WEEKDAY(CalendarDay)=WeekStartValue,CONCATENATE(\"Week \",WEEKNUM(CalendarDay),\"/Day \",CalendarDay-DATE(YEAR(CalendarDay),1,0)),CONCATENATE(\"Day \",CalendarDay-DATE(YEAR(CalendarDay),1,0)))","v":"Day 284"},{"$f":"IF(WEEKDAY(CalendarDay)=WeekStartValue,CONCATENATE(\"Week \",WEEKNUM(CalendarDay),\"/Day \",CalendarDay-DATE(YEAR(CalendarDay),1,0)),CONCATENATE(\"Day \",CalendarDay-DATE(YEAR(CalendarDay),1,0)))","v":"Day 285"}]
[]
[null,null,{"$f":"DaysAndWeeks+DATE(CalendarYear,10,1)-WEEKDAY(DATE(CalendarYear,10,1),(WeekStart=\"MON\")+1)+15","v":"2013-10-13"},"2013-10-14","2013-10-15","2013-10-16","2013-10-17","2013-10-18","2013-10-19"]
[null,null,{"$f":"IF(WEEKDAY(CalendarDay)=WeekStartValue,CONCATENATE(\"Week \",WEEKNUM(CalendarDay),\"/Day \",CalendarDay-DATE(YEAR(CalendarDay),1,0)),CONCATENATE(\"Day \",CalendarDay-DATE(YEAR(CalendarDay),1,0)))","v":"Week 42/Day 286"},{"$f":"IF(WEEKDAY(CalendarDay)=WeekStartValue,CONCATENATE(\"Week \",WEEKNUM(CalendarDay),\"/Day \",CalendarDay-DATE(YEAR(CalendarDay),1,0)),CONCATENATE(\"Day \",CalendarDay-DATE(YEAR(CalendarDay),1,0)))","v":"Day 287"},{"$f":"IF(WEEKDAY(CalendarDay)=WeekStartValue,CONCATENATE(\"Week \",WEEKNUM(CalendarDay),\"/Day \",CalendarDay-DATE(YEAR(CalendarDay),1,0)),CONCATENATE(\"Day \",CalendarDay-DATE(YEAR(CalendarDay),1,0)))","v":"Day 288"},{"$f":"IF(WEEKDAY(CalendarDay)=WeekStartValue,CONCATENATE(\"Week \",WEEKNUM(CalendarDay),\"/Day \",CalendarDay-DATE(YEAR(CalendarDay),1,0)),CONCATENATE(\"Day \",CalendarDay-DATE(YEAR(CalendarDay),1,0)))","v":"Day 289"},{"$f":"IF(WEEKDAY(CalendarDay)=WeekStartValue,CONCATENATE(\"Week \",WEEKNUM(CalendarDay),\"/Day \",CalendarDay-DATE(YEAR(CalendarDay),1,0)),CONCATENATE(\"Day \",CalendarDay-DATE(YEAR(CalendarDay),1,0)))","v":"Day 290"},{"$f":"IF(WEEKDAY(CalendarDay)=WeekStartValue,CONCATENATE(\"Week \",WEEKNUM(CalendarDay),\"/Day \",CalendarDay-DATE(YEAR(CalendarDay),1,0)),CONCATENATE(\"Day \",CalendarDay-DATE(YEAR(CalendarDay),1,0)))","v":"Day 291"},{"$f":"IF(WEEKDAY(CalendarDay)=WeekStartValue,CONCATENATE(\"Week \",WEEKNUM(CalendarDay),\"/Day \",CalendarDay-DATE(YEAR(CalendarDay),1,0)),CONCATENATE(\"Day \",CalendarDay-DATE(YEAR(CalendarDay),1,0)))","v":"Day 292"}]
[]
[null,null,{"$f":"DaysAndWeeks+DATE(CalendarYear,10,1)-WEEKDAY(DATE(CalendarYear,10,1),(WeekStart=\"MON\")+1)+22","v":"2013-10-20"},"2013-10-21","2013-10-22","2013-10-23","2013-10-24","2013-10-25","2013-10-26"]
[null,null,{"$f":"IF(WEEKDAY(CalendarDay)=WeekStartValue,CONCATENATE(\"Week \",WEEKNUM(CalendarDay),\"/Day \",CalendarDay-DATE(YEAR(CalendarDay),1,0)),CONCATENATE(\"Day \",CalendarDay-DATE(YEAR(CalendarDay),1,0)))","v":"Week 43/Day 293"},{"$f":"IF(WEEKDAY(CalendarDay)=WeekStartValue,CONCATENATE(\"Week \",WEEKNUM(CalendarDay),\"/Day \",CalendarDay-DATE(YEAR(CalendarDay),1,0)),CONCATENATE(\"Day \",CalendarDay-DATE(YEAR(CalendarDay),1,0)))","v":"Day 294"},{"$f":"IF(WEEKDAY(CalendarDay)=WeekStartValue,CONCATENATE(\"Week \",WEEKNUM(CalendarDay),\"/Day \",CalendarDay-DATE(YEAR(CalendarDay),1,0)),CONCATENATE(\"Day \",CalendarDay-DATE(YEAR(CalendarDay),1,0)))","v":"Day 295"},{"$f":"IF(WEEKDAY(CalendarDay)=WeekStartValue,CONCATENATE(\"Week \",WEEKNUM(CalendarDay),\"/Day \",CalendarDay-DATE(YEAR(CalendarDay),1,0)),CONCATENATE(\"Day \",CalendarDay-DATE(YEAR(CalendarDay),1,0)))","v":"Day 296"},{"$f":"IF(WEEKDAY(CalendarDay)=WeekStartValue,CONCATENATE(\"Week \",WEEKNUM(CalendarDay),\"/Day \",CalendarDay-DATE(YEAR(CalendarDay),1,0)),CONCATENATE(\"Day \",CalendarDay-DATE(YEAR(CalendarDay),1,0)))","v":"Day 297"},{"$f":"IF(WEEKDAY(CalendarDay)=WeekStartValue,CONCATENATE(\"Week \",WEEKNUM(CalendarDay),\"/Day \",CalendarDay-DATE(YEAR(CalendarDay),1,0)),CONCATENATE(\"Day \",CalendarDay-DATE(YEAR(CalendarDay),1,0)))","v":"Day 298"},{"$f":"IF(WEEKDAY(CalendarDay)=WeekStartValue,CONCATENATE(\"Week \",WEEKNUM(CalendarDay),\"/Day \",CalendarDay-DATE(YEAR(CalendarDay),1,0)),CONCATENATE(\"Day \",CalendarDay-DATE(YEAR(CalendarDay),1,0)))","v":"Day 299"}]
[]
[null,null,{"$f":"DaysAndWeeks+DATE(CalendarYear,10,1)-WEEKDAY(DATE(CalendarYear,10,1),(WeekStart=\"MON\")+1)+29","v":"2013-10-27"},"2013-10-28","2013-10-29","2013-10-30","2013-10-31","2013-11-01","2013-11-02"]
[null,null,{"$f":"IF(WEEKDAY(CalendarDay)=WeekStartValue,CONCATENATE(\"Week \",WEEKNUM(CalendarDay),\"/Day \",CalendarDay-DATE(YEAR(CalendarDay),1,0)),CONCATENATE(\"Day \",CalendarDay-DATE(YEAR(CalendarDay),1,0)))","v":"Week 44/Day 300"},{"$f":"IF(WEEKDAY(CalendarDay)=WeekStartValue,CONCATENATE(\"Week \",WEEKNUM(CalendarDay),\"/Day \",CalendarDay-DATE(YEAR(CalendarDay),1,0)),CONCATENATE(\"Day \",CalendarDay-DATE(YEAR(CalendarDay),1,0)))","v":"Day 301"},{"$f":"IF(WEEKDAY(CalendarDay)=WeekStartValue,CONCATENATE(\"Week \",WEEKNUM(CalendarDay),\"/Day \",CalendarDay-DATE(YEAR(CalendarDay),1,0)),CONCATENATE(\"Day \",CalendarDay-DATE(YEAR(CalendarDay),1,0)))","v":"Day 302"},{"$f":"IF(WEEKDAY(CalendarDay)=WeekStartValue,CONCATENATE(\"Week \",WEEKNUM(CalendarDay),\"/Day \",CalendarDay-DATE(YEAR(CalendarDay),1,0)),CONCATENATE(\"Day \",CalendarDay-DATE(YEAR(CalendarDay),1,0)))","v":"Day 303"},{"$f":"IF(WEEKDAY(CalendarDay)=WeekStartValue,CONCATENATE(\"Week \",WEEKNUM(CalendarDay),\"/Day \",CalendarDay-DATE(YEAR(CalendarDay),1,0)),CONCATENATE(\"Day \",CalendarDay-DATE(YEAR(CalendarDay),1,0)))","v":"Day 304"},{"$f":"IF(WEEKDAY(CalendarDay)=WeekStartValue,CONCATENATE(\"Week \",WEEKNUM(CalendarDay),\"/Day \",CalendarDay-DATE(YEAR(CalendarDay),1,0)),CONCATENATE(\"Day \",CalendarDay-DATE(YEAR(CalendarDay),1,0)))","v":"Day 305"},{"$f":"IF(WEEKDAY(CalendarDay)=WeekStartValue,CONCATENATE(\"Week \",WEEKNUM(CalendarDay),\"/Day \",CalendarDay-DATE(YEAR(CalendarDay),1,0)),CONCATENATE(\"Day \",CalendarDay-DATE(YEAR(CalendarDay),1,0)))","v":"Day 306"}]
[{"$nulls":4},"NOTES"]
[]
[null,null,{"$f":"DaysAndWeeks+DATE(CalendarYear,10,1)-WEEKDAY(DATE(CalendarYear,10,1),(WeekStart=\"MON\")+1)+36","v":"2013-11-03"},"2013-11-04"]
[null,null,{"$f":"IF(WEEKDAY(CalendarDay)=WeekStartValue,CONCATENATE(\"Week \",WEEKNUM(CalendarDay),\"/Day \",CalendarDay-DATE(YEAR(CalendarDay),1,0)),CONCATENATE(\"Day \",CalendarDay-DATE(YEAR(CalendarDay),1,0)))","v":"Week 45/Day 307"},{"$f":"IF(WEEKDAY(CalendarDay)=WeekStartValue,CONCATENATE(\"Week \",WEEKNUM(CalendarDay),\"/Day \",CalendarDay-DATE(YEAR(CalendarDay),1,0)),CONCATENATE(\"Day \",CalendarDay-DATE(YEAR(CalendarDay),1,0)))","v":"Day 308"}]

{"sheet":"NOV","index":10,"n_rows":20,"n_cols":10,"rows_kept":20,"merged":[[17,4,19,8]]}
[null,null,"SUN",{"$f":"UPPER(TEXT(D3,\"aaa\"))","v":"MON"},"TUE","WED","THU","FRI","SAT"," "]
[null,{"$f":"CalendarYear","v":2013},{"$nulls":7}," "]
[null,null,{"$f":"DaysAndWeeks+DATE(CalendarYear,11,1)-WEEKDAY(DATE(CalendarYear,11,1),(WeekStart=\"MON\")+1)+1","v":"2013-10-27"},"2013-10-28","2013-10-29","2013-10-30","2013-10-31","2013-11-01","2013-11-02"]
[null,null,{"$f":"IF(DAY(CalendarDay)=1,CONCATENATE(\"Week/\",WEEKNUM(CalendarDay),\" Day \",CalendarDay-DATE(YEAR(CalendarDay),1,0)),CONCATENATE(\"Day \",CalendarDay-DATE(YEAR(CalendarDay),1,0)))","v":"Day 300"},"Day 301","Day 302","Day 303","Day 304","Week/44 Day 305","Day 306"]
[]
[null,null,{"$f":"DaysAndWeeks+DATE(CalendarYear,11,1)-WEEKDAY(DATE(CalendarYear,11,1),(WeekStart=\"MON\")+1)+8","v":"2013-11-03"},"2013-11-04","2013-11-05","2013-11-06","2013-11-07","2013-11-08","2013-11-09"]
[null,null,{"$f":"IF(WEEKDAY(CalendarDay)=WeekStartValue,CONCATENATE(\"Week \",WEEKNUM(CalendarDay),\"/Day \",CalendarDay-DATE(YEAR(CalendarDay),1,0)),CONCATENATE(\"Day \",CalendarDay-DATE(YEAR(CalendarDay),1,0)))","v":"Week 45/Day 307"},{"$f":"IF(WEEKDAY(CalendarDay)=WeekStartValue,CONCATENATE(\"Week \",WEEKNUM(CalendarDay),\"/Day \",CalendarDay-DATE(YEAR(CalendarDay),1,0)),CONCATENATE(\"Day \",CalendarDay-DATE(YEAR(CalendarDay),1,0)))","v":"Day 308"},{"$f":"IF(WEEKDAY(CalendarDay)=WeekStartValue,CONCATENATE(\"Week \",WEEKNUM(CalendarDay),\"/Day \",CalendarDay-DATE(YEAR(CalendarDay),1,0)),CONCATENATE(\"Day \",CalendarDay-DATE(YEAR(CalendarDay),1,0)))","v":"Day 309"},{"$f":"IF(WEEKDAY(CalendarDay)=WeekStartValue,CONCATENATE(\"Week \",WEEKNUM(CalendarDay),\"/Day \",CalendarDay-DATE(YEAR(CalendarDay),1,0)),CONCATENATE(\"Day \",CalendarDay-DATE(YEAR(CalendarDay),1,0)))","v":"Day 310"},{"$f":"IF(WEEKDAY(CalendarDay)=WeekStartValue,CONCATENATE(\"Week \",WEEKNUM(CalendarDay),\"/Day \",CalendarDay-DATE(YEAR(CalendarDay),1,0)),CONCATENATE(\"Day \",CalendarDay-DATE(YEAR(CalendarDay),1,0)))","v":"Day 311"},{"$f":"IF(WEEKDAY(CalendarDay)=WeekStartValue,CONCATENATE(\"Week \",WEEKNUM(CalendarDay),\"/Day \",CalendarDay-DATE(YEAR(CalendarDay),1,0)),CONCATENATE(\"Day \",CalendarDay-DATE(YEAR(CalendarDay),1,0)))","v":"Day 312"},{"$f":"IF(WEEKDAY(CalendarDay)=WeekStartValue,CONCATENATE(\"Week \",WEEKNUM(CalendarDay),\"/Day \",CalendarDay-DATE(YEAR(CalendarDay),1,0)),CONCATENATE(\"Day \",CalendarDay-DATE(YEAR(CalendarDay),1,0)))","v":"Day 313"}]
[]
[null,null,{"$f":"DaysAndWeeks+DATE(CalendarYear,11,1)-WEEKDAY(DATE(CalendarYear,11,1),(WeekStart=\"MON\")+1)+15","v":"2013-11-10"},"2013-11-11","2013-11-12","2013-11-13","2013-11-14","2013-11-15","2013-11-16"]
[null,null,{"$f":"IF(WEEKDAY(CalendarDay)=WeekStartValue,CONCATENATE(\"Week \",WEEKNUM(CalendarDay),\"/Day \",CalendarDay-DATE(YEAR(CalendarDay),1,0)),CONCATENATE(\"Day \",CalendarDay-DATE(YEAR(CalendarDay),1,0)))","v":"Week 46/Day 314"},{"$f":"IF(WEEKDAY(CalendarDay)=WeekStartValue,CONCATENATE(\"Week \",WEEKNUM(CalendarDay),\"/Day \",CalendarDay-DATE(YEAR(CalendarDay),1,0)),CONCATENATE(\"Day \",CalendarDay-DATE(YEAR(CalendarDay),1,0)))","v":"Day 315"},{"$f":"IF(WEEKDAY(CalendarDay)=WeekStartValue,CONCATENATE(\"Week \",WEEKNUM(CalendarDay),\"/Day \",CalendarDay-DATE(YEAR(CalendarDay),1,0)),CONCATENATE(\"Day \",CalendarDay-DATE(YEAR(CalendarDay),1,0)))","v":"Day 316"},{"$f":"IF(WEEKDAY(CalendarDay)=WeekStartValue,CONCATENATE(\"Week \",WEEKNUM(CalendarDay),\"/Day \",CalendarDay-DATE(YEAR(CalendarDay),1,0)),CONCATENATE(\"Day \",CalendarDay-DATE(YEAR(CalendarDay),1,0)))","v":"Day 317"},{"$f":"IF(WEEKDAY(CalendarDay)=WeekStartValue,CONCATENATE(\"Week \",WEEKNUM(CalendarDay),\"/Day \",CalendarDay-DATE(YEAR(CalendarDay),1,0)),CONCATENATE(\"Day \",CalendarDay-DATE(YEAR(CalendarDay),1,0)))","v":"Day 318"},{"$f":"IF(WEEKDAY(CalendarDay)=WeekStartValue,CONCATENATE(\"Week \",WEEKNUM(CalendarDay),\"/Day \",CalendarDay-DATE(YEAR(CalendarDay),1,0)),CONCATENATE(\"Day \",CalendarDay-DATE(YEAR(CalendarDay),1,0)))","v":"Day 319"},{"$f":"IF(WEEKDAY(CalendarDay)=WeekStartValue,CONCATENATE(\"Week \",WEEKNUM(CalendarDay),\"/Day \",CalendarDay-DATE(YEAR(CalendarDay),1,0)),CONCATENATE(\"Day \",CalendarDay-DATE(YEAR(CalendarDay),1,0)))","v":"Day 320"}]
[]
[null,null,{"$f":"DaysAndWeeks+DATE(CalendarYear,11,1)-WEEKDAY(DATE(CalendarYear,11,1),(WeekStart=\"MON\")+1)+22","v":"2013-11-17"},"2013-11-18","2013-11-19","2013-11-20","2013-11-21","2013-11-22","2013-11-23"]
[null,null,{"$f":"IF(WEEKDAY(CalendarDay)=WeekStartValue,CONCATENATE(\"Week \",WEEKNUM(CalendarDay),\"/Day \",CalendarDay-DATE(YEAR(CalendarDay),1,0)),CONCATENATE(\"Day \",CalendarDay-DATE(YEAR(CalendarDay),1,0)))","v":"Week 47/Day 321"},{"$f":"IF(WEEKDAY(CalendarDay)=WeekStartValue,CONCATENATE(\"Week \",WEEKNUM(CalendarDay),\"/Day \",CalendarDay-DATE(YEAR(CalendarDay),1,0)),CONCATENATE(\"Day \",CalendarDay-DATE(YEAR(CalendarDay),1,0)))","v":"Day 322"},{"$f":"IF(WEEKDAY(CalendarDay)=WeekStartValue,CONCATENATE(\"Week \",WEEKNUM(CalendarDay),\"/Day \",CalendarDay-DATE(YEAR(CalendarDay),1,0)),CONCATENATE(\"Day \",CalendarDay-DATE(YEAR(CalendarDay),1,0)))","v":"Day 323"},{"$f":"IF(WEEKDAY(CalendarDay)=WeekStartValue,CONCATENATE(\"Week \",WEEKNUM(CalendarDay),\"/Day \",CalendarDay-DATE(YEAR(CalendarDay),1,0)),CONCATENATE(\"Day \",CalendarDay-DATE(YEAR(CalendarDay),1,0)))","v":"Day 324"},{"$f":"IF(WEEKDAY(CalendarDay)=WeekStartValue,CONCATENATE(\"Week \",WEEKNUM(CalendarDay),\"/Day \",CalendarDay-DATE(YEAR(CalendarDay),1,0)),CONCATENATE(\"Day \",CalendarDay-DATE(YEAR(CalendarDay),1,0)))","v":"Day 325"},{"$f":"IF(WEEKDAY(CalendarDay)=WeekStartValue,CONCATENATE(\"Week \",WEEKNUM(CalendarDay),\"/Day \",CalendarDay-DATE(YEAR(CalendarDay),1,0)),CONCATENATE(\"Day \",CalendarDay-DATE(YEAR(CalendarDay),1,0)))","v":"Day 326"},{"$f":"IF(WEEKDAY(CalendarDay)=WeekStartValue,CONCATENATE(\"Week \",WEEKNUM(CalendarDay),\"/Day \",CalendarDay-DATE(YEAR(CalendarDay),1,0)),CONCATENATE(\"Day \",CalendarDay-DATE(YEAR(CalendarDay),1,0)))","v":"Day 327"}]
[]
[null,null,{"$f":"DaysAndWeeks+DATE(CalendarYear,11,1)-WEEKDAY(DATE(CalendarYear,11,1),(WeekStart=\"MON\")+1)+29","v":"2013-11-24"},"2013-11-25","2013-11-26","2013-11-27","2013-11-28","2013-11-29","2013-11-30"]
[null,null,{"$f":"IF(WEEKDAY(CalendarDay)=WeekStartValue,CONCATENATE(\"Week \",WEEKNUM(CalendarDay),\"/Day \",CalendarDay-DATE(YEAR(CalendarDay),1,0)),CONCATENATE(\"Day \",CalendarDay-DATE(YEAR(CalendarDay),1,0)))","v":"Week 48/Day 328"},{"$f":"IF(WEEKDAY(CalendarDay)=WeekStartValue,CONCATENATE(\"Week \",WEEKNUM(CalendarDay),\"/Day \",CalendarDay-DATE(YEAR(CalendarDay),1,0)),CONCATENATE(\"Day \",CalendarDay-DATE(YEAR(CalendarDay),1,0)))","v":"Day 329"},{"$f":"IF(WEEKDAY(CalendarDay)=WeekStartValue,CONCATENATE(\"Week \",WEEKNUM(CalendarDay),\"/Day \",CalendarDay-DATE(YEAR(CalendarDay),1,0)),CONCATENATE(\"Day \",CalendarDay-DATE(YEAR(CalendarDay),1,0)))","v":"Day 330"},{"$f":"IF(WEEKDAY(CalendarDay)=WeekStartValue,CONCATENATE(\"Week \",WEEKNUM(CalendarDay),\"/Day \",CalendarDay-DATE(YEAR(CalendarDay),1,0)),CONCATENATE(\"Day \",CalendarDay-DATE(YEAR(CalendarDay),1,0)))","v":"Day 331"},{"$f":"IF(WEEKDAY(CalendarDay)=WeekStartValue,CONCATENATE(\"Week \",WEEKNUM(CalendarDay),\"/Day \",CalendarDay-DATE(YEAR(CalendarDay),1,0)),CONCATENATE(\"Day \",CalendarDay-DATE(YEAR(CalendarDay),1,0)))","v":"Day 332"},{"$f":"IF(WEEKDAY(CalendarDay)=WeekStartValue,CONCATENATE(\"Week \",WEEKNUM(CalendarDay),\"/Day \",CalendarDay-DATE(YEAR(CalendarDay),1,0)),CONCATENATE(\"Day \",CalendarDay-DATE(YEAR(CalendarDay),1,0)))","v":"Day 333"},{"$f":"IF(WEEKDAY(CalendarDay)=WeekStartValue,CONCATENATE(\"Week \",WEEKNUM(CalendarDay),\"/Day \",CalendarDay-DATE(YEAR(CalendarDay),1,0)),CONCATENATE(\"Day \",CalendarDay-DATE(YEAR(CalendarDay),1,0)))","v":"Day 334"}]
[{"$nulls":4},"NOTES"]
[]
[null,null,{"$f":"DaysAndWeeks+DATE(CalendarYear,11,1)-WEEKDAY(DATE(CalendarYear,11,1),(WeekStart=\"MON\")+1)+36","v":"2013-12-01"},"2013-12-02"]
[null,null,{"$f":"IF(WEEKDAY(CalendarDay)=WeekStartValue,CONCATENATE(\"Week \",WEEKNUM(CalendarDay),\"/Day \",CalendarDay-DATE(YEAR(CalendarDay),1,0)),CONCATENATE(\"Day \",CalendarDay-DATE(YEAR(CalendarDay),1,0)))","v":"Week 49/Day 335"},{"$f":"IF(WEEKDAY(CalendarDay)=WeekStartValue,CONCATENATE(\"Week \",WEEKNUM(CalendarDay),\"/Day \",CalendarDay-DATE(YEAR(CalendarDay),1,0)),CONCATENATE(\"Day \",CalendarDay-DATE(YEAR(CalendarDay),1,0)))","v":"Day 336"}]

{"sheet":"DEC","index":11,"n_rows":20,"n_cols":10,"rows_kept":20,"merged":[[17,4,19,8]]}
[null,null,"SUN",{"$f":"UPPER(TEXT(D3,\"aaa\"))","v":"MON"},"TUE","WED","THU","FRI","SAT"," "]
[null,{"$f":"CalendarYear","v":2013},{"$nulls":7}," "]
[null,null,{"$f":"DaysAndWeeks+DATE(CalendarYear,12,1)-WEEKDAY(DATE(CalendarYear,12,1),(WeekStart=\"MON\")+1)+1","v":"2013-12-01"},"2013-12-02","2013-12-03","2013-12-04","2013-12-05","2013-12-06","2013-12-07"]
[null,null,{"$f":"IF(DAY(CalendarDay)=1,CONCATENATE(\"Week/\",WEEKNUM(CalendarDay),\" Day \",CalendarDay-DATE(YEAR(CalendarDay),1,0)),CONCATENATE(\"Day \",CalendarDay-DATE(YEAR(CalendarDay),1,0)))","v":"Week/49 Day 335"},"Day 336","Day 337","Day 338","Day 339","Day 340","Day 341"]
[]
[null,null,{"$f":"DaysAndWeeks+DATE(CalendarYear,12,1)-WEEKDAY(DATE(CalendarYear,12,1),(WeekStart=\"MON\")+1)+8","v":"2013-12-08"},"2013-12-09","2013-12-10","2013-12-11","2013-12-12","2013-12-13","2013-12-14"]
[null,null,{"$f":"IF(WEEKDAY(CalendarDay)=WeekStartValue,CONCATENATE(\"Week \",WEEKNUM(CalendarDay),\"/Day \",CalendarDay-DATE(YEAR(CalendarDay),1,0)),CONCATENATE(\"Day \",CalendarDay-DATE(YEAR(CalendarDay),1,0)))","v":"Week 50/Day 342"},{"$f":"IF(WEEKDAY(CalendarDay)=WeekStartValue,CONCATENATE(\"Week \",WEEKNUM(CalendarDay),\"/Day \",CalendarDay-DATE(YEAR(CalendarDay),1,0)),CONCATENATE(\"Day \",CalendarDay-DATE(YEAR(CalendarDay),1,0)))","v":"Day 343"},{"$f":"IF(WEEKDAY(CalendarDay)=WeekStartValue,CONCATENATE(\"Week \",WEEKNUM(CalendarDay),\"/Day \",CalendarDay-DATE(YEAR(CalendarDay),1,0)),CONCATENATE(\"Day \",CalendarDay-DATE(YEAR(CalendarDay),1,0)))","v":"Day 344"},{"$f":"IF(WEEKDAY(CalendarDay)=WeekStartValue,CONCATENATE(\"Week \",WEEKNUM(CalendarDay),\"/Day \",CalendarDay-DATE(YEAR(CalendarDay),1,0)),CONCATENATE(\"Day \",CalendarDay-DATE(YEAR(CalendarDay),1,0)))","v":"Day 345"},{"$f":"IF(WEEKDAY(CalendarDay)=WeekStartValue,CONCATENATE(\"Week \",WEEKNUM(CalendarDay),\"/Day \",CalendarDay-DATE(YEAR(CalendarDay),1,0)),CONCATENATE(\"Day \",CalendarDay-DATE(YEAR(CalendarDay),1,0)))","v":"Day 346"},{"$f":"IF(WEEKDAY(CalendarDay)=WeekStartValue,CONCATENATE(\"Week \",WEEKNUM(CalendarDay),\"/Day \",CalendarDay-DATE(YEAR(CalendarDay),1,0)),CONCATENATE(\"Day \",CalendarDay-DATE(YEAR(CalendarDay),1,0)))","v":"Day 347"},{"$f":"IF(WEEKDAY(CalendarDay)=WeekStartValue,CONCATENATE(\"Week \",WEEKNUM(CalendarDay),\"/Day \",CalendarDay-DATE(YEAR(CalendarDay),1,0)),CONCATENATE(\"Day \",CalendarDay-DATE(YEAR(CalendarDay),1,0)))","v":"Day 348"}]
[]
[null,null,{"$f":"DaysAndWeeks+DATE(CalendarYear,12,1)-WEEKDAY(DATE(CalendarYear,12,1),(WeekStart=\"MON\")+1)+15","v":"2013-12-15"},"2013-12-16","2013-12-17","2013-12-18","2013-12-19","2013-12-20","2013-12-21"]
[null,null,{"$f":"IF(WEEKDAY(CalendarDay)=WeekStartValue,CONCATENATE(\"Week \",WEEKNUM(CalendarDay),\"/Day \",CalendarDay-DATE(YEAR(CalendarDay),1,0)),CONCATENATE(\"Day \",CalendarDay-DATE(YEAR(CalendarDay),1,0)))","v":"Week 51/Day 349"},{"$f":"IF(WEEKDAY(CalendarDay)=WeekStartValue,CONCATENATE(\"Week \",WEEKNUM(CalendarDay),\"/Day \",CalendarDay-DATE(YEAR(CalendarDay),1,0)),CONCATENATE(\"Day \",CalendarDay-DATE(YEAR(CalendarDay),1,0)))","v":"Day 350"},{"$f":"IF(WEEKDAY(CalendarDay)=WeekStartValue,CONCATENATE(\"Week \",WEEKNUM(CalendarDay),\"/Day \",CalendarDay-DATE(YEAR(CalendarDay),1,0)),CONCATENATE(\"Day \",CalendarDay-DATE(YEAR(CalendarDay),1,0)))","v":"Day 351"},{"$f":"IF(WEEKDAY(CalendarDay)=WeekStartValue,CONCATENATE(\"Week \",WEEKNUM(CalendarDay),\"/Day \",CalendarDay-DATE(YEAR(CalendarDay),1,0)),CONCATENATE(\"Day \",CalendarDay-DATE(YEAR(CalendarDay),1,0)))","v":"Day 352"},{"$f":"IF(WEEKDAY(CalendarDay)=WeekStartValue,CONCATENATE(\"Week \",WEEKNUM(CalendarDay),\"/Day \",CalendarDay-DATE(YEAR(CalendarDay),1,0)),CONCATENATE(\"Day \",CalendarDay-DATE(YEAR(CalendarDay),1,0)))","v":"Day 353"},{"$f":"IF(WEEKDAY(CalendarDay)=WeekStartValue,CONCATENATE(\"Week \",WEEKNUM(CalendarDay),\"/Day \",CalendarDay-DATE(YEAR(CalendarDay),1,0)),CONCATENATE(\"Day \",CalendarDay-DATE(YEAR(CalendarDay),1,0)))","v":"Day 354"},{"$f":"IF(WEEKDAY(CalendarDay)=WeekStartValue,CONCATENATE(\"Week \",WEEKNUM(CalendarDay),\"/Day \",CalendarDay-DATE(YEAR(CalendarDay),1,0)),CONCATENATE(\"Day \",CalendarDay-DATE(YEAR(CalendarDay),1,0)))","v":"Day 355"}]
[]
[null,null,{"$f":"DaysAndWeeks+DATE(CalendarYear,12,1)-WEEKDAY(DATE(CalendarYear,12,1),(WeekStart=\"MON\")+1)+22","v":"2013-12-22"},"2013-12-23","2013-12-24","2013-12-25","2013-12-26","2013-12-27","2013-12-28"]
[null,null,{"$f":"IF(WEEKDAY(CalendarDay)=WeekStartValue,CONCATENATE(\"Week \",WEEKNUM(CalendarDay),\"/Day \",CalendarDay-DATE(YEAR(CalendarDay),1,0)),CONCATENATE(\"Day \",CalendarDay-DATE(YEAR(CalendarDay),1,0)))","v":"Week 52/Day 356"},{"$f":"IF(WEEKDAY(CalendarDay)=WeekStartValue,CONCATENATE(\"Week \",WEEKNUM(CalendarDay),\"/Day \",CalendarDay-DATE(YEAR(CalendarDay),1,0)),CONCATENATE(\"Day \",CalendarDay-DATE(YEAR(CalendarDay),1,0)))","v":"Day 357"},{"$f":"IF(WEEKDAY(CalendarDay)=WeekStartValue,CONCATENATE(\"Week \",WEEKNUM(CalendarDay),\"/Day \",CalendarDay-DATE(YEAR(CalendarDay),1,0)),CONCATENATE(\"Day \",CalendarDay-DATE(YEAR(CalendarDay),1,0)))","v":"Day 358"},{"$f":"IF(WEEKDAY(CalendarDay)=WeekStartValue,CONCATENATE(\"Week \",WEEKNUM(CalendarDay),\"/Day \",CalendarDay-DATE(YEAR(CalendarDay),1,0)),CONCATENATE(\"Day \",CalendarDay-DATE(YEAR(CalendarDay),1,0)))","v":"Day 359"},{"$f":"IF(WEEKDAY(CalendarDay)=WeekStartValue,CONCATENATE(\"Week \",WEEKNUM(CalendarDay),\"/Day \",CalendarDay-DATE(YEAR(CalendarDay),1,0)),CONCATENATE(\"Day \",CalendarDay-DATE(YEAR(CalendarDay),1,0)))","v":"Day 360"},{"$f":"IF(WEEKDAY(CalendarDay)=WeekStartValue,CONCATENATE(\"Week \",WEEKNUM(CalendarDay),\"/Day \",CalendarDay-DATE(YEAR(CalendarDay),1,0)),CONCATENATE(\"Day \",CalendarDay-DATE(YEAR(CalendarDay),1,0)))","v":"Day 361"},{"$f":"IF(WEEKDAY(CalendarDay)=WeekStartValue,CONCATENATE(\"Week \",WEEKNUM(CalendarDay),\"/Day \",CalendarDay-DATE(YEAR(CalendarDay),1,0)),CONCATENATE(\"Day \",CalendarDay-DATE(YEAR(CalendarDay),1,0)))","v":"Day 362"}]
[]
[null,null,{"$f":"DaysAndWeeks+DATE(CalendarYear,12,1)-WEEKDAY(DATE(CalendarYear,12,1),(WeekStart=\"MON\")+1)+29","v":"2013-12-29"},"2013-12-30","2013-12-31","2014-01-01","2014-01-02","2014-01-03","2014-01-04"]
[null,null,{"$f":"IF(WEEKDAY(CalendarDay)=WeekStartValue,CONCATENATE(\"Week \",WEEKNUM(CalendarDay),\"/Day \",CalendarDay-DATE(YEAR(CalendarDay),1,0)),CONCATENATE(\"Day \",CalendarDay-DATE(YEAR(CalendarDay),1,0)))","v":"Week 53/Day 363"},{"$f":"IF(WEEKDAY(CalendarDay)=WeekStartValue,CONCATENATE(\"Week \",WEEKNUM(CalendarDay),\"/Day \",CalendarDay-DATE(YEAR(CalendarDay),1,0)),CONCATENATE(\"Day \",CalendarDay-DATE(YEAR(CalendarDay),1,0)))","v":"Day 364"},{"$f":"IF(WEEKDAY(CalendarDay)=WeekStartValue,CONCATENATE(\"Week \",WEEKNUM(CalendarDay),\"/Day \",CalendarDay-DATE(YEAR(CalendarDay),1,0)),CONCATENATE(\"Day \",CalendarDay-DATE(YEAR(CalendarDay),1,0)))","v":"Day 365"},{"$f":"IF(WEEKDAY(CalendarDay)=WeekStartValue,CONCATENATE(\"Week \",WEEKNUM(CalendarDay),\"/Day \",CalendarDay-DATE(YEAR(CalendarDay),1,0)),CONCATENATE(\"Day \",CalendarDay-DATE(YEAR(CalendarDay),1,0)))","v":"Day 1"},{"$f":"IF(WEEKDAY(CalendarDay)=WeekStartValue,CONCATENATE(\"Week \",WEEKNUM(CalendarDay),\"/Day \",CalendarDay-DATE(YEAR(CalendarDay),1,0)),CONCATENATE(\"Day \",CalendarDay-DATE(YEAR(CalendarDay),1,0)))","v":"Day 2"},{"$f":"IF(WEEKDAY(CalendarDay)=WeekStartValue,CONCATENATE(\"Week \",WEEKNUM(CalendarDay),\"/Day \",CalendarDay-DATE(YEAR(CalendarDay),1,0)),CONCATENATE(\"Day \",CalendarDay-DATE(YEAR(CalendarDay),1,0)))","v":"Day 3"},{"$f":"IF(WEEKDAY(CalendarDay)=WeekStartValue,CONCATENATE(\"Week \",WEEKNUM(CalendarDay),\"/Day \",CalendarDay-DATE(YEAR(CalendarDay),1,0)),CONCATENATE(\"Day \",CalendarDay-DATE(YEAR(CalendarDay),1,0)))","v":"Day 4"}]
[{"$nulls":4},"NOTES"]
[]
[null,null,{"$f":"DaysAndWeeks+DATE(CalendarYear,12,1)-WEEKDAY(DATE(CalendarYear,12,1),(WeekStart=\"MON\")+1)+36","v":"2014-01-05"},"2014-01-06"]
[null,null,{"$f":"IF(WEEKDAY(CalendarDay)=WeekStartValue,CONCATENATE(\"Week \",WEEKNUM(CalendarDay),\"/Day \",CalendarDay-DATE(YEAR(CalendarDay),1,0)),CONCATENATE(\"Day \",CalendarDay-DATE(YEAR(CalendarDay),1,0)))","v":"Week 2/Day 5"},{"$f":"IF(WEEKDAY(CalendarDay)=WeekStartValue,CONCATENATE(\"Week \",WEEKNUM(CalendarDay),\"/Day \",CalendarDay-DATE(YEAR(CalendarDay),1,0)),CONCATENATE(\"Day \",CalendarDay-DATE(YEAR(CalendarDay),1,0)))","v":"Day 6"}]